Body Name,Body,Service Division Label,Service Division Code,Organisational Unit,Expenditure Category,Expenditure Code,CIPFA detailed expediture type,CIPFA detailed expediture code,Narrative,Date,Transaction number,Net Amount,Capital and Revenue,Supplier Name,Supplier ID
Chorley Borough Council,http://statistics.data.gov.uk/id/local-authority/30UE,Democratic Represent and  Mgnt,1007,Governance,Other Fees,40212,Miscellaneous Expenses,5034,"Fees for events requiring the bar during Aug, Sept and Oct 2015.",09/12/2015,108115,620.00,Revenue,Ace Bars Ltd,54338
Chorley Borough Council,http://statistics.data.gov.uk/id/local-authority/30UE,Democratic Represent and  Mgnt,1007,Governance,Other Fees,40212,Miscellaneous Expenses,5034,Bar fees for November and December 2015.,22/12/2015,108569,390.00,Revenue,Ace Bars Ltd,54338
Chorley Borough Council,http://statistics.data.gov.uk/id/local-authority/30UE,Central Support Services,1009,Health Environment & Neighbourhoods,Rent/Hire Of Premises,20017,Premises Rents,5007,Hire of sports hall and astroturf for November and December for Friday DSC 7-9pm,04/12/2015,108050,542.00,Revenue,Active Nation UK Ltd,17144
Chorley Borough Council,http://statistics.data.gov.uk/id/local-authority/30UE,Democratic Represent and  Mgnt,1007,Streetscene & Leisure Contracts,External Contractor - Trust or Charity,50008,Private Contractors,5042,Active Nation Monthly Management Fee For the Period April 2015 - March 2016.Fee invoiced at the beginning of each month,10/12/2015,108235,"31,211.54",Revenue,Active Nation UK Ltd,17144
Chorley Borough Council,http://statistics.data.gov.uk/id/local-authority/30UE,Central Support Services,1009,Health Environment & Neighbourhoods,Sports Development Initiatives,40186,Miscellaneous Expenses,5034,Delivery of Trinity & St Michaels Dance x 11 sessions,09/12/2015,108122,440.00,Revenue,Adele Bannister,19442
Chorley Borough Council,http://statistics.data.gov.uk/id/local-authority/30UE,Service Management & Support,1009,Streetscene & Leisure Contracts,External Contractor,40198,Miscellaneous Expenses,5034,Carryout works to river retaining wall at Ackhurst Lodge entrance to Astley Park as per your quote,02/12/2015,107767,920.00,Revenue,Adlington Dry Stone Walling,63372
Chorley Borough Council,http://statistics.data.gov.uk/id/local-authority/30UE,Democratic Represent and  Mgnt,1007,Streetscene & Leisure Contracts,Grounds Maintenance Contractor,20043,Grounds Maintenance Costs,5013,Repairs to stone wall at Withnell Nature Reserve off Pleasant View as per quotation. to be carried out as soon as possible,16/12/2015,108206,"1,800.00",Revenue,Adlington Dry Stone Walling,63372
Chorley Borough Council,http://statistics.data.gov.uk/id/local-authority/30UE,Democratic Represent and  Mgnt,1007,Streetscene & Leisure Contracts,Grounds Maintenance Contractor,20043,Grounds Maintenance Costs,5013,Materials,16/12/2015,108206,"1,170.00",Revenue,Adlington Dry Stone Walling,63372
Chorley Borough Council,http://statistics.data.gov.uk/id/local-authority/30UE,Service Management & Support,1009,Streetscene & Leisure Contracts,Vehicle Maintenance,30045,Direct Transport Costs,5016,Please supply service kit for SWINGO 200+ including all filters.,16/12/2015,108399,359.68,Revenue,Aebi Schmidt UK Ltd,17287
Chorley Borough Council,http://statistics.data.gov.uk/id/local-authority/30UE,Business Support,1095,Policy & Performance,Research & Feasibilities,40079,Services,5027,Market Walk extension - additional work to amend plans based on tenants requirements,09/12/2015,108124,"1,400.00",Revenue,AEW Architects & Designers Ltd,66520
Chorley Borough Council,http://statistics.data.gov.uk/id/local-authority/30UE,Community Development,1097,Policy & Performance,Core Funding Grants,40133,Grants and Subscriptions,5031,Second payment for the delivery of volunteering provision to support older people in Chorley 2015/16,09/12/2015,108051,"5,000.00",Revenue,Age UK,21252
Chorley Borough Council,http://statistics.data.gov.uk/id/local-authority/30UE,Central Support Services,1009,Health Environment & Neighbourhoods,Rent/Hire Of Premises,20017,Premises Rents,5007,Hire of sports facilities over summer 43 hours @ 20 per hour,22/12/2015,108572,860.00,Revenue,Albany Science College,20693
Chorley Borough Council,http://statistics.data.gov.uk/id/local-authority/30UE,Central Support Services,1009,Health Environment & Neighbourhoods,Rent/Hire Of Premises,20017,Premises Rents,5007,Hire of schools facility for Feb Half Term activities (20 hours @ 20 ph),22/12/2015,108573,400.00,Revenue,Albany Science College,20693
Chorley Borough Council,http://statistics.data.gov.uk/id/local-authority/30UE,Central Support Services,1009,Health Environment & Neighbourhoods,Rent/Hire Of Premises,20017,Premises Rents,5007,Hire of sports facilities over Easter holiday period x 35 hours,22/12/2015,108574,700.00,Revenue,Albany Science College,20693
Chorley Borough Council,http://statistics.data.gov.uk/id/local-authority/30UE,Central Support Services,1009,Health Environment & Neighbourhoods,Rent/Hire Of Premises,20017,Premises Rents,5007,Hire of facilities for May Half Term school holiday x 15 hrs,22/12/2015,108575,300.00,Revenue,Albany Science College,20693
Chorley Borough Council,http://statistics.data.gov.uk/id/local-authority/30UE,Central Support Services,1009,Health Environment & Neighbourhoods,Rent/Hire Of Premises,20017,Premises Rents,5007,Hire of facilities for 26th to 30th October for Half Term Activities,22/12/2015,108576,500.00,Revenue,Albany Science College,20693
Chorley Borough Council,http://statistics.data.gov.uk/id/local-authority/30UE,Central Support Services,1009,Health Environment & Neighbourhoods,Rent/Hire Of Premises,20017,Premises Rents,5007,Hire of facilities throughout Summer Holidays,22/12/2015,108577,"1,750.00",Revenue,Albany Science College,20693
Chorley Borough Council,http://statistics.data.gov.uk/id/local-authority/30UE,Business Support,1095,Economic Development,Miscellaneous Expenses,40200,Miscellaneous Expenses,5034,sib grant,22/12/2015,108609,250.00,Revenue,NAME REDACTED,73292
Chorley Borough Council,http://statistics.data.gov.uk/id/local-authority/30UE,Unapportionable Central OHeads,1009,Governance,Uniforms,40039,"Clothing, Uniforms and Laundry",5025,"W220	Easycare shirt L/S	Qty 5	Size 15.5	White	unit price 11.99 each 	Total 59.95",18/12/2015,108154,51.00,Revenue,Alexandra RE:MWUK LTD,21752
Chorley Borough Council,http://statistics.data.gov.uk/id/local-authority/30UE,Unapportionable Central OHeads,1009,Governance,Uniforms,40039,"Clothing, Uniforms and Laundry",5025,"FW129	Mens safety Brogue	Qty 1	Size 10	Black	Unit price 27.99 each	 Total 27.99",18/12/2015,108154,27.00,Revenue,Alexandra RE:MWUK LTD,21752
Chorley Borough Council,http://statistics.data.gov.uk/id/local-authority/30UE,Unapportionable Central OHeads,1009,Governance,Uniforms,40039,"Clothing, Uniforms and Laundry",5025,"NM2	Blazer	Qty 1	Size 42``	Navy	Unit price 83.99 each	 Total 83.99",18/12/2015,108154,59.50,Revenue,Alexandra RE:MWUK LTD,21752
Chorley Borough Council,http://statistics.data.gov.uk/id/local-authority/30UE,Unapportionable Central OHeads,1009,Governance,Uniforms,40039,"Clothing, Uniforms and Laundry",5025,"W221	Short sleeve shirt	Qty 3	Size 16.5	White	Unit price 10.99 each	 Total 32.97",18/12/2015,108154,28.05,Revenue,Alexandra RE:MWUK LTD,21752
Chorley Borough Council,http://statistics.data.gov.uk/id/local-authority/30UE,Unapportionable Central OHeads,1009,Governance,Uniforms,40039,"Clothing, Uniforms and Laundry",5025,"FW129	Mens Safety Brogue	Qty 1	Size 9	Black	Unit price 27.99 each	 total 27.99",18/12/2015,108154,29.75,Revenue,Alexandra RE:MWUK LTD,21752
Chorley Borough Council,http://statistics.data.gov.uk/id/local-authority/30UE,Unapportionable Central OHeads,1009,Governance,Uniforms,40039,"Clothing, Uniforms and Laundry",5025,"NM6	Waistcoat	Qty 1	Size 44``	Navy	Unit price 24.99 each	 Total 24.99",18/12/2015,108154,21.25,Revenue,Alexandra RE:MWUK LTD,21752
Chorley Borough Council,http://statistics.data.gov.uk/id/local-authority/30UE,Unapportionable Central OHeads,1009,Governance,Uniforms,40039,"Clothing, Uniforms and Laundry",5025,"NM2	Blazer	Qty 1	Size 44``	Navy	Unit price 83.99 each	 Total 83.99",18/12/2015,108154,57.75,Revenue,Alexandra RE:MWUK LTD,21752
Chorley Borough Council,http://statistics.data.gov.uk/id/local-authority/30UE,Unapportionable Central OHeads,1009,Governance,Uniforms,40039,"Clothing, Uniforms and Laundry",5025,"NM5	Trousers flat front	Qty 1	Size 36�R	Navy	Unit price 34.99 each	 Total 34.99",18/12/2015,108154,29.75,Revenue,Alexandra RE:MWUK LTD,21752
Chorley Borough Council,http://statistics.data.gov.uk/id/local-authority/30UE,Unapportionable Central OHeads,1009,Governance,Uniforms,40039,"Clothing, Uniforms and Laundry",5025,"W220	Easycare long sleeve shirt	Qty 3	Size 17``	White	Unit price 14.39 each	 Total 43.17",18/12/2015,108154,28.75,Revenue,Alexandra RE:MWUK LTD,21752
Chorley Borough Council,http://statistics.data.gov.uk/id/local-authority/30UE,Unapportionable Central OHeads,1009,"Customer, ICT & Transactional",Bank Charges,40151,Miscellaneous Expenses,5034,Additional account fee,22/12/2015,108211,10.00,Revenue,Allpay Net Ltd,17242
Chorley Borough Council,http://statistics.data.gov.uk/id/local-authority/30UE,Unapportionable Central OHeads,1009,"Customer, ICT & Transactional",Bank Charges,40151,Miscellaneous Expenses,5034,post office transactions,22/12/2015,108211,"1,182.82",Revenue,Allpay Net Ltd,17242
Chorley Borough Council,http://statistics.data.gov.uk/id/local-authority/30UE,Unapportionable Central OHeads,1009,"Customer, ICT & Transactional",Bank Charges,40151,Miscellaneous Expenses,5034,paypoint transactions,22/12/2015,108211,752.93,Revenue,Allpay Net Ltd,17242
Chorley Borough Council,http://statistics.data.gov.uk/id/local-authority/30UE,Unapportionable Central OHeads,1009,"Customer, ICT & Transactional",Bank Charges,40151,Miscellaneous Expenses,5034,webconnect,22/12/2015,108211,46.00,Revenue,Allpay Net Ltd,17242
Chorley Borough Council,http://statistics.data.gov.uk/id/local-authority/30UE,Unapportionable Central OHeads,1009,"Customer, ICT & Transactional",Bank Charges,40151,Miscellaneous Expenses,5034,Additonal account,22/12/2015,108212,10.00,Revenue,Allpay Net Ltd,17242
Chorley Borough Council,http://statistics.data.gov.uk/id/local-authority/30UE,Unapportionable Central OHeads,1009,"Customer, ICT & Transactional",Bank Charges,40151,Miscellaneous Expenses,5034,paypoint,22/12/2015,108212,692.73,Revenue,Allpay Net Ltd,17242
Chorley Borough Council,http://statistics.data.gov.uk/id/local-authority/30UE,Unapportionable Central OHeads,1009,"Customer, ICT & Transactional",Bank Charges,40151,Miscellaneous Expenses,5034,post office,22/12/2015,108212,"1,026.40",Revenue,Allpay Net Ltd,17242
Chorley Borough Council,http://statistics.data.gov.uk/id/local-authority/30UE,Unapportionable Central OHeads,1009,"Customer, ICT & Transactional",Bank Charges,40151,Miscellaneous Expenses,5034,webconnect,22/12/2015,108212,46.00,Revenue,Allpay Net Ltd,17242
Chorley Borough Council,http://statistics.data.gov.uk/id/local-authority/30UE,Planning Policy,1092,Shared Service Arrangement,Car Leasing Payment,14100,Direct Employee Expenses,5001,Car Leasing,18/12/2015,108534,"2,273.53",Revenue,Alphabet (Uk) Fleet Management Ltd,16651
Chorley Borough Council,http://statistics.data.gov.uk/id/local-authority/30UE,Planning Policy,1092,Shared Service Arrangement,Car Leasing Payment,14100,Direct Employee Expenses,5001,vat,18/12/2015,108534,200.71,Revenue,Alphabet (Uk) Fleet Management Ltd,16651
Chorley Borough Council,http://statistics.data.gov.uk/id/local-authority/30UE,Democratic Represent and  Mgnt,1007,Streetscene & Leisure Contracts,Miscellaneous Expenses,40200,Miscellaneous Expenses,5034,"Voltex Midi 429.30 Voltex Variable 122.94 Aromas: woodsmoke, baking bread and Christmas pudding",09/12/2015,108065,503.21,Revenue,Anglo Brands T/A Dale Air,72811
Chorley Borough Council,http://statistics.data.gov.uk/id/local-authority/30UE,Homelessness,1075,Housing,Rental Bond Scheme,40241,Miscellaneous Expenses,5034,bond claim fee,16/12/2015,108267,375.00,Revenue,Anglo Homes,73017
Chorley Borough Council,http://statistics.data.gov.uk/id/local-authority/30UE,Homelessness,1075,Housing,Rental Bond Scheme,40241,Miscellaneous Expenses,5034,bond claim fee,16/12/2015,108268,400.00,Revenue,Anglo Homes,73017
Chorley Borough Council,http://statistics.data.gov.uk/id/local-authority/30UE,Central Support Services,1009,"Customer, ICT & Transactional",Computer - Support Services,40111,Communication and Computing,5028,credited,18/12/2015,107560,"3,000.00",Revenue,ANS Group,22502
Chorley Borough Council,http://statistics.data.gov.uk/id/local-authority/30UE,Central Support Services,1009,"Customer, ICT & Transactional",Computer Software-Maintenance,40107,Communication and Computing,5028,"Citrix support contract. Contract ref ANS/4483/529, covering the period 01/12/15 to 31/03/17",02/12/2015,108006,"4,060.00",Revenue,ANS Group,22502
Chorley Borough Council,http://statistics.data.gov.uk/id/local-authority/30UE,Central Support Services,1009,"Customer, ICT & Transactional",Computer Equipment-Maintenance,40105,Communication and Computing,5028,Managed infrastructure contract - December 2015,18/12/2015,108249,"2,000.00",Revenue,ANS Group,22502
Chorley Borough Council,http://statistics.data.gov.uk/id/local-authority/30UE,Democratic Represent and  Mgnt,1007,Streetscene & Leisure Contracts,Supplies-Grounds Maintenance,40025,"Equipment, Furniture & Materia",5023,Materials and labour to install Breedon gravel path through the wild flower meadow to the rear of Astley Hall,09/12/2015,108156,"5,746.40",Revenue,AP Broom Landscapes,67257
Chorley Borough Council,http://statistics.data.gov.uk/id/local-authority/30UE,Democratic Represent and  Mgnt,1007,Streetscene & Leisure Contracts,Supplies-Grounds Maintenance,40025,"Equipment, Furniture & Materia",5023,Lay and roll Breedon Gravel within Walled Garden Astley Park,22/12/2015,108581,"1,680.00",Revenue,AP Broom Landscapes,67257
Chorley Borough Council,http://statistics.data.gov.uk/id/local-authority/30UE,Central Support Services,1009,Shared Service Arrangement,Car Leasing Payment,14100,Direct Employee Expenses,5001,Lease Car,04/12/2015,107467,261.00,Revenue,Arnold Clark Finance Ltd,20685
Chorley Borough Council,http://statistics.data.gov.uk/id/local-authority/30UE,Central Support Services,1009,Shared Service Arrangement,Car Leasing Payment,14100,Direct Employee Expenses,5001,Lease car,04/12/2015,107467,292.22,Revenue,Arnold Clark Finance Ltd,20685
Chorley Borough Council,http://statistics.data.gov.uk/id/local-authority/30UE,Central Support Services,1009,Shared Service Arrangement,Car Leasing Payment,14100,Direct Employee Expenses,5001,VAT,04/12/2015,107467,23.41,Revenue,Arnold Clark Finance Ltd,20685
Chorley Borough Council,http://statistics.data.gov.uk/id/local-authority/30UE,Central Support Services,1009,Shared Service Arrangement,Car Leasing Payment,14100,Direct Employee Expenses,5001,vat,04/12/2015,107467,26.28,Revenue,Arnold Clark Finance Ltd,20685
Chorley Borough Council,http://statistics.data.gov.uk/id/local-authority/30UE,Central Support Services,1009,Shared Service Arrangement,Car Leasing Payment,14100,Direct Employee Expenses,5001,Lease Car,16/12/2015,108496,261.00,Revenue,Arnold Clark Finance Ltd,20685
Chorley Borough Council,http://statistics.data.gov.uk/id/local-authority/30UE,Central Support Services,1009,Shared Service Arrangement,Car Leasing Payment,14100,Direct Employee Expenses,5001,Lease Car,16/12/2015,108496,266.00,Revenue,Arnold Clark Finance Ltd,20685
Chorley Borough Council,http://statistics.data.gov.uk/id/local-authority/30UE,Unapportionable Central OHeads,1009,Shared Service Arrangement,Car Leasing Payment,14100,Direct Employee Expenses,5001,Lease Car,16/12/2015,108496,425.22,Revenue,Arnold Clark Finance Ltd,20685
Chorley Borough Council,http://statistics.data.gov.uk/id/local-authority/30UE,Central Support Services,1009,Shared Service Arrangement,Car Leasing Payment,14100,Direct Employee Expenses,5001,vat,16/12/2015,108496,23.41,Revenue,Arnold Clark Finance Ltd,20685
Chorley Borough Council,http://statistics.data.gov.uk/id/local-authority/30UE,Central Support Services,1009,Shared Service Arrangement,Car Leasing Payment,14100,Direct Employee Expenses,5001,vat,16/12/2015,108496,23.93,Revenue,Arnold Clark Finance Ltd,20685
Chorley Borough Council,http://statistics.data.gov.uk/id/local-authority/30UE,Unapportionable Central OHeads,1009,Shared Service Arrangement,Car Leasing Payment,14100,Direct Employee Expenses,5001,vat,16/12/2015,108496,38.77,Revenue,Arnold Clark Finance Ltd,20685
Chorley Borough Council,http://statistics.data.gov.uk/id/local-authority/30UE,Service Management & Support,1009,Shared Service Arrangement,Car Leasing Payment,14100,Direct Employee Expenses,5001,Lease Car,18/12/2015,108551,"3,600.00",Revenue,Arnold Clark Finance Ltd,20685
Chorley Borough Council,http://statistics.data.gov.uk/id/local-authority/30UE,Service Management & Support,1009,Shared Service Arrangement,Car Leasing Payment,14100,Direct Employee Expenses,5001,vat,18/12/2015,108551,302.46,Revenue,Arnold Clark Finance Ltd,20685
Chorley Borough Council,http://statistics.data.gov.uk/id/local-authority/30UE,Central Support Services,1009,Shared Service Arrangement,Car Leasing Payment,14100,Direct Employee Expenses,5001,Lease Car,18/12/2015,108552,"1,596.00",Revenue,Arnold Clark Finance Ltd,20685
Chorley Borough Council,http://statistics.data.gov.uk/id/local-authority/30UE,Central Support Services,1009,Shared Service Arrangement,Car Leasing Payment,14100,Direct Employee Expenses,5001,vat,18/12/2015,108552,143.54,Revenue,Arnold Clark Finance Ltd,20685
Chorley Borough Council,http://statistics.data.gov.uk/id/local-authority/30UE,Unapportionable Central OHeads,1009,"Customer, ICT & Transactional",Training Course Fees,17010,Indirect Employee Expenses,5002,Council tax legislation onsite training 12 November 2015 16 delegates,02/12/2015,107199,960.00,Revenue,arvato Ltd,22388
Chorley Borough Council,http://statistics.data.gov.uk/id/local-authority/30UE,Democratic Represent and  Mgnt,1007,Streetscene & Leisure Contracts,Supplies-Grounds Maintenance,40025,"Equipment, Furniture & Materia",5023,Hire of 500 No X GT Lightweight Barriers 1.0m x 2.3m wide as per you quotation BA62290 to be delivered to Astley Park ,22/12/2015,107684,"1,450.00",Revenue,Ashtead Plant Hire Co Ltd trading as Eve Trakway,70134
Chorley Borough Council,http://statistics.data.gov.uk/id/local-authority/30UE,Corporate Management,1008,Chief Executives Office,Professional Fees,40063,Services,5027,Work supporting partnership with LCFT,04/12/2015,107905,"22,400.00",Revenue,Atkins Ltd,71421
Chorley Borough Council,http://statistics.data.gov.uk/id/local-authority/30UE,Service Management & Support,1009,Streetscene & Leisure Contracts,Hire Of Transport,30028,Contrct Hire & Operating Lease,5018,Hire of hollow core machine to include hollow core tines and collection and delivery as per Email ,18/12/2015,107990,520.00,Revenue,Balmers Garden Machinery,17075
Chorley Borough Council,http://statistics.data.gov.uk/id/local-authority/30UE,Service Management & Support,1009,Streetscene & Leisure Contracts,Registered Plant - Maintenance,40247,"Equipment, Furniture & Materia",5023,Supply items as on advise note number 178423/2,18/12/2015,108515,338.72,Revenue,Balmers Garden Machinery,17075
Chorley Borough Council,http://statistics.data.gov.uk/id/local-authority/30UE,Service Management & Support,1009,Streetscene & Leisure Contracts,Registered Plant - Maintenance,40247,"Equipment, Furniture & Materia",5023,Supply items as on advise note number 178371/5 already supplied,18/12/2015,108516,398.95,Revenue,Balmers Garden Machinery,17075
Chorley Borough Council,http://statistics.data.gov.uk/id/local-authority/30UE,Central Support Services,1009,Streetscene & Leisure Contracts,Miscellaneous Expenses,40200,Miscellaneous Expenses,5034,Carryout rubbing down priming and painting works to steel fencing on canal/road bridge at Park Road Adlington as per quote,16/12/2015,106619,"2,400.00",Revenue,Barrie Thompson,19585
Chorley Borough Council,http://statistics.data.gov.uk/id/local-authority/30UE,Unapportionable Central OHeads,1009,Policy & Performance,Exhibitions & Special Events,40158,Miscellaneous Expenses,5034,Event management and promotion of the Chorley Christmas lights switch on by Rock FM,09/12/2015,108121,"11,405.20",Revenue,Bauer Active Ltd,50574
Chorley Borough Council,http://statistics.data.gov.uk/id/local-authority/30UE,Central Support Services,1009,Health Environment & Neighbourhoods,Tools & Equipment - Maintenance,40005,"Equipment, Furniture & Materia",5023,Relocation of CCTV camera at Clayton Brook,16/12/2015,108420,"1,710.50",Revenue,Baydale Control Systems,21154
Chorley Borough Council,http://statistics.data.gov.uk/id/local-authority/30UE,Unapportionable Central OHeads,1009,"Customer, ICT & Transactional",Consultants` Fees,40077,Services,5027,"Support as agreed with Customer, Transactional and ICT services",09/12/2015,108157,"1,575.00",Revenue,REDACTED PERSONAL DATA,22238
Chorley Borough Council,http://statistics.data.gov.uk/id/local-authority/30UE,Business Support,1095,Economic Development,Grants To Other Organisations,40127,Grants and Subscriptions,5031,refurb grant,11/12/2015,108276,"3,000.00",Revenue,NAME REDACTED,66513
Chorley Borough Council,http://statistics.data.gov.uk/id/local-authority/30UE,Capital,Capital,Streetscene & Leisure Contracts,Equipment,3014,Capital Expenditure,Capital,"3x BX47 4001A-RT Hopetoun Stainless Steel Benches, grade 304 stainless steel, 1800mm length, root fixed, matt satin ",16/12/2015,107326,"1,722.00",Capital,Broxap Ltd,16718
Chorley Borough Council,http://statistics.data.gov.uk/id/local-authority/30UE,Culture & Heritage,1036,Health Environment & Neighbourhoods,Telephones - Rentals,40083,Communication and Computing,5028,Redcare Vision,02/12/2015,107817,"3,204.68",Revenue,BT Redcare,21115
Chorley Borough Council,http://statistics.data.gov.uk/id/local-authority/30UE,Service Management & Support,1009,Streetscene & Leisure Contracts,Supplies-Grounds Maintenance,40025,"Equipment, Furniture & Materia",5023,Highway C2 fast setting mortar.  25kg bag.  Product Code = 02110551,04/12/2015,108019,412.00,Revenue,C & W BERRY LIMITED,18180
Chorley Borough Council,http://statistics.data.gov.uk/id/local-authority/30UE,Service Management & Support,1009,Streetscene & Leisure Contracts,Supplies-Grounds Maintenance,40025,"Equipment, Furniture & Materia",5023,Secateurs Bypass S&J.  Product Code = 05070624,04/12/2015,108029,51.40,Revenue,C & W BERRY LIMITED,18180
Chorley Borough Council,http://statistics.data.gov.uk/id/local-authority/30UE,Service Management & Support,1009,Streetscene & Leisure Contracts,Supplies-Grounds Maintenance,40025,"Equipment, Furniture & Materia",5023,Tarmac bag 25kg.  Product Code = 02110334,04/12/2015,108029,234.08,Revenue,C & W BERRY LIMITED,18180
Chorley Borough Council,http://statistics.data.gov.uk/id/local-authority/30UE,Service Management & Support,1009,Streetscene & Leisure Contracts,External Contractor,40198,Miscellaneous Expenses,5034,Carryout monthly emptying of interceptor tank and gullies at Bengal St depot at price agreed,18/12/2015,108383,300.00,Revenue,C J Lyon,16579
Chorley Borough Council,http://statistics.data.gov.uk/id/local-authority/30UE,Service Management & Support,1009,Streetscene & Leisure Contracts,External Contractor,40198,Miscellaneous Expenses,5034,Carryout jetting works at Astley Park as requested 28/10/2015,16/12/2015,108412,120.00,Revenue,C J Lyon,16579
Chorley Borough Council,http://statistics.data.gov.uk/id/local-authority/30UE,Service Management & Support,1009,Streetscene & Leisure Contracts,External Contractor,40198,Miscellaneous Expenses,5034,Callout to jet drains and clear catchment pit at Bengal St depot as requested,16/12/2015,108412,230.00,Revenue,C J Lyon,16579
Chorley Borough Council,http://statistics.data.gov.uk/id/local-authority/30UE,Service Management & Support,1009,Streetscene & Leisure Contracts,Vehicle Maintenance,30045,Direct Transport Costs,5016,Carryout service and pre MOT inspection on DK56JWO take for annual test as required,09/12/2015,108159,843.03,Revenue,C P Davidson & Sons Ltd,21093
Chorley Borough Council,http://statistics.data.gov.uk/id/local-authority/30UE,Service Management & Support,1009,Streetscene & Leisure Contracts,Vehicle Maintenance,30045,Direct Transport Costs,5016,,09/12/2015,108159,127.00,Revenue,C P Davidson & Sons Ltd,21093
Chorley Borough Council,http://statistics.data.gov.uk/id/local-authority/30UE,Service Management & Support,1009,Streetscene & Leisure Contracts,Vehicle Maintenance,30045,Direct Transport Costs,5016,"Complete Service, Inspection, Repairs and MOT  for ISUZU DK57 KVT",16/12/2015,108397,927.81,Revenue,C P Davidson & Sons Ltd,21093
Chorley Borough Council,http://statistics.data.gov.uk/id/local-authority/30UE,Unapportionable Central OHeads,1009,"Customer, ICT & Transactional",Emergency Call Out System,40096,Communication and Computing,5028,Out of hours call charges October 2015,22/12/2015,107515,464.64,Revenue,CallCare Ltd,20257
Chorley Borough Council,http://statistics.data.gov.uk/id/local-authority/30UE,Unapportionable Central OHeads,1009,"Customer, ICT & Transactional",Emergency Call Out System,40096,Communication and Computing,5028,Out of hours standing charge December 2015 (Including Bank Holidays),22/12/2015,107515,220.00,Revenue,CallCare Ltd,20257
Chorley Borough Council,http://statistics.data.gov.uk/id/local-authority/30UE,Economic Development,1096,Economic Development,Miscellaneous Expenses,40200,Miscellaneous Expenses,5034,Buffet for 120 Choose Chorley Network Wed 25th Nov 2015.  6 per head = 720 plus vat,02/12/2015,108010,360.00,Revenue,Camerons Restaurant Ltd,53731
Chorley Borough Council,http://statistics.data.gov.uk/id/local-authority/30UE,Central Support Services,1009,"Customer, ICT & Transactional",Computer Equipment-Purchase,40098,Communication and Computing,5028,"Purchase of Network scanner ScanFront 300e - complete with FOC items: 3 x Network scanner ScanFront 300e ",18/12/2015,108429,"1,600.00",Revenue,Canon (UK) Ltd,17492
Chorley Borough Council,http://statistics.data.gov.uk/id/local-authority/30UE,Unapportionable Central OHeads,1009,"Customer, ICT & Transactional",Photocopier Charges,40047,"Printing, Stationery & General",5026,,18/12/2015,108528,"1,281.21",Revenue,Canon (UK) Ltd,17492
Chorley Borough Council,http://statistics.data.gov.uk/id/local-authority/30UE,Capital,Capital,Streetscene & Leisure Contracts,Main Contractor,3007,Capital Expenditure,Capital,Design and build of free form concrete skate park at Ranglett`s Recreation Ground.,22/12/2015,108407,"12,500.00",Capital,Canvas Spaces Ltd,72477
Chorley Borough Council,http://statistics.data.gov.uk/id/local-authority/30UE,Capital,Capital,Streetscene & Leisure Contracts,Main Contractor,3007,Capital Expenditure,Capital,Materials,22/12/2015,108407,"31,211.60",Capital,Canvas Spaces Ltd,72477
Chorley Borough Council,http://statistics.data.gov.uk/id/local-authority/30UE,Unapportionable Central OHeads,1009,"Customer, ICT & Transactional",Computer Software-Maintenance,40107,Communication and Computing,5028,Capita charge for software changes to ATLAS for nSP included in Rel 72 Aug 15. (Funded to LA by DWP.),18/12/2015,107893,"1,009.71",Revenue,Capita Business Services Ltd,17151
Chorley Borough Council,http://statistics.data.gov.uk/id/local-authority/30UE,Democratic Represent and  Mgnt,1007,Streetscene & Leisure Contracts,External Contractor,40198,Miscellaneous Expenses,5034,Pond and Ditch Maintenance to Manor Road Allotments,11/12/2015,108293,480.00,Revenue,CH Civils Ltd,22541
Chorley Borough Council,http://statistics.data.gov.uk/id/local-authority/30UE,Service Management & Support,1009,Streetscene & Leisure Contracts,External Contractor,40198,Miscellaneous Expenses,5034,Carryout works at Yarrow depot as requested stock pilling rock salt,22/12/2015,108567,140.00,Revenue,CH Civils Ltd,22541
Chorley Borough Council,http://statistics.data.gov.uk/id/local-authority/30UE,Service Management & Support,1009,Streetscene & Leisure Contracts,External Contractor,40198,Miscellaneous Expenses,5034,Works carried out at Tatton recreation ground to investigate drainage issue. Create soak away sump,22/12/2015,108567,200.00,Revenue,CH Civils Ltd,22541
Chorley Borough Council,http://statistics.data.gov.uk/id/local-authority/30UE,Democratic Represent and  Mgnt,1007,Governance,Grants To Other Organisations,40127,Grants and Subscriptions,5031,grant,22/12/2015,108597,250.00,Revenue,Charnock Richard Pre-School,59143
Chorley Borough Council,http://statistics.data.gov.uk/id/local-authority/30UE,Corporate Management,1008,Health Environment & Neighbourhoods,Taxi Testing & Vehicle Safety Report,40234,Services,5027,taxi test,16/12/2015,108381,102.60,Revenue,Chorley Autocare Ltd,17110
Chorley Borough Council,http://statistics.data.gov.uk/id/local-authority/30UE,Corporate Management,1008,Health Environment & Neighbourhoods,Taxi Testing & Vehicle Safety Report,40234,Services,5027,MOT,16/12/2015,108381,658.20,Revenue,Chorley Autocare Ltd,17110
Chorley Borough Council,http://statistics.data.gov.uk/id/local-authority/30UE,Democratic Represent and  Mgnt,1007,Chief Executives Office,Stationery,40050,"Printing, Stationery & General",5026,card,10/12/2015,108236,4.16,Revenue,Chorley BC Petty Cash,16301
Chorley Borough Council,http://statistics.data.gov.uk/id/local-authority/30UE,Unapportionable Central OHeads,1009,Chief Executives Office,Refreshments,40036,Catering,5024,sugar and tea,10/12/2015,108236,2.80,Revenue,Chorley BC Petty Cash,16301
Chorley Borough Council,http://statistics.data.gov.uk/id/local-authority/30UE,Unapportionable Central OHeads,1009,Chief Executives Office,Refreshments,40036,Catering,5024,coffee,10/12/2015,108236,13.77,Revenue,Chorley BC Petty Cash,16301
Chorley Borough Council,http://statistics.data.gov.uk/id/local-authority/30UE,Corporate Management,1008,Chief Executives Office,Publicity - Advertising,40157,Miscellaneous Expenses,5034,decorations,10/12/2015,108236,8.47,Revenue,Chorley BC Petty Cash,16301
Chorley Borough Council,http://statistics.data.gov.uk/id/local-authority/30UE,Unapportionable Central OHeads,1009,Chief Executives Office,Uniforms,40039,"Clothing, Uniforms and Laundry",5025,dry cleaning,10/12/2015,108236,16.95,Revenue,Chorley BC Petty Cash,16301
Chorley Borough Council,http://statistics.data.gov.uk/id/local-authority/30UE,Unapportionable Central OHeads,1009,Chief Executives Office,Refreshments,40036,Catering,5024,refreshments,10/12/2015,108236,7.86,Revenue,Chorley BC Petty Cash,16301
Chorley Borough Council,http://statistics.data.gov.uk/id/local-authority/30UE,Democratic Represent and  Mgnt,1007,Chief Executives Office,Tools & Equipment - Purchase,40003,"Equipment, Furniture & Materia",5023,mulled wine,10/12/2015,108236,19.95,Revenue,Chorley BC Petty Cash,16301
Chorley Borough Council,http://statistics.data.gov.uk/id/local-authority/30UE,Democratic Represent and  Mgnt,1007,Chief Executives Office,Tools & Equipment - Purchase,40003,"Equipment, Furniture & Materia",5023,mulled wine,10/12/2015,108236,19.95,Revenue,Chorley BC Petty Cash,16301
Chorley Borough Council,http://statistics.data.gov.uk/id/local-authority/30UE,Unapportionable Central OHeads,1009,Chief Executives Office,Refreshments,40036,Catering,5024,milk,10/12/2015,108236,7.55,Revenue,Chorley BC Petty Cash,16301
Chorley Borough Council,http://statistics.data.gov.uk/id/local-authority/30UE,Democratic Represent and  Mgnt,1007,Chief Executives Office,Refreshments,40036,Catering,5024,car park,10/12/2015,108236,4.00,Revenue,Chorley BC Petty Cash,16301
Chorley Borough Council,http://statistics.data.gov.uk/id/local-authority/30UE,Homelessness,1075,Chief Executives Office,Tools & Equipment - Purchase,40003,"Equipment, Furniture & Materia",5023,party food,10/12/2015,108236,31.22,Revenue,Chorley BC Petty Cash,16301
Chorley Borough Council,http://statistics.data.gov.uk/id/local-authority/30UE,Homelessness,1075,Chief Executives Office,Fixtures & Fittings - Purchase,20027,Fixtures and Fittings,5010,window film,10/12/2015,108236,8.33,Revenue,Chorley BC Petty Cash,16301
Chorley Borough Council,http://statistics.data.gov.uk/id/local-authority/30UE,Democratic Represent and  Mgnt,1007,Chief Executives Office,Refreshments,40036,Catering,5024,refreshements,10/12/2015,108236,5.05,Revenue,Chorley BC Petty Cash,16301
Chorley Borough Council,http://statistics.data.gov.uk/id/local-authority/30UE,Unapportionable Central OHeads,1009,Chief Executives Office,Stationery,40050,"Printing, Stationery & General",5026,card pouches,10/12/2015,108236,4.98,Revenue,Chorley BC Petty Cash,16301
Chorley Borough Council,http://statistics.data.gov.uk/id/local-authority/30UE,Democratic Represent and  Mgnt,1007,Chief Executives Office,Use Of Transport - Mayoral Car,30015,Transport Recharges,5017,car wash,10/12/2015,108236,5.00,Revenue,Chorley BC Petty Cash,16301
Chorley Borough Council,http://statistics.data.gov.uk/id/local-authority/30UE,Democratic Represent and  Mgnt,1007,Chief Executives Office,Use Of Transport - Mayoral Car,30015,Transport Recharges,5017,bottle bags,10/12/2015,108236,1.70,Revenue,Chorley BC Petty Cash,16301
Chorley Borough Council,http://statistics.data.gov.uk/id/local-authority/30UE,Democratic Represent and  Mgnt,1007,Chief Executives Office,Processional Routes,40177,Miscellaneous Expenses,5034,tables,10/12/2015,108236,12.48,Revenue,Chorley BC Petty Cash,16301
Chorley Borough Council,http://statistics.data.gov.uk/id/local-authority/30UE,Democratic Represent and  Mgnt,1007,Chief Executives Office,Members Hospitality,40122,Expenses,5030,biscuits,10/12/2015,108236,16.95,Revenue,Chorley BC Petty Cash,16301
Chorley Borough Council,http://statistics.data.gov.uk/id/local-authority/30UE,Economic Development,1096,Chief Executives Office,Tools & Equipment - Purchase,40003,"Equipment, Furniture & Materia",5023,keys,10/12/2015,108236,16.00,Revenue,Chorley BC Petty Cash,16301
Chorley Borough Council,http://statistics.data.gov.uk/id/local-authority/30UE,Democratic Represent and  Mgnt,1007,Chief Executives Office,Fixtures & Fittings - Purchase,20027,Fixtures and Fittings,5010,tin foil,10/12/2015,108236,4.16,Revenue,Chorley BC Petty Cash,16301
Chorley Borough Council,http://statistics.data.gov.uk/id/local-authority/30UE,Democratic Represent and  Mgnt,1007,Chief Executives Office,Fixtures & Fittings - Purchase,20027,Fixtures and Fittings,5010,keys,10/12/2015,108236,12.00,Revenue,Chorley BC Petty Cash,16301
Chorley Borough Council,http://statistics.data.gov.uk/id/local-authority/30UE,Central Support Services,1009,Chief Executives Office,Sports Development Initiatives,40186,Miscellaneous Expenses,5034,refreshmetns,10/12/2015,108236,14.00,Revenue,Chorley BC Petty Cash,16301
Chorley Borough Council,http://statistics.data.gov.uk/id/local-authority/30UE,Central Support Services,1009,Chief Executives Office,Community Develop Initiatives,40185,Miscellaneous Expenses,5034,refreshemtns,10/12/2015,108236,11.37,Revenue,Chorley BC Petty Cash,16301
Chorley Borough Council,http://statistics.data.gov.uk/id/local-authority/30UE,Central Support Services,1009,Chief Executives Office,Community Develop Initiatives,40185,Miscellaneous Expenses,5034,food,10/12/2015,108236,17.95,Revenue,Chorley BC Petty Cash,16301
Chorley Borough Council,http://statistics.data.gov.uk/id/local-authority/30UE,Corporate Management,1008,Chief Executives Office,Miscellaneous Expenses,40200,Miscellaneous Expenses,5034,bulky collection,10/12/2015,108236,26.50,Revenue,Chorley BC Petty Cash,16301
Chorley Borough Council,http://statistics.data.gov.uk/id/local-authority/30UE,Central Support Services,1009,Chief Executives Office,Refreshments,40036,Catering,5024,velcro hook,10/12/2015,108236,4.65,Revenue,Chorley BC Petty Cash,16301
Chorley Borough Council,http://statistics.data.gov.uk/id/local-authority/30UE,Central Support Services,1009,Chief Executives Office,Refreshments,40036,Catering,5024,refreshemtns,10/12/2015,108236,5.79,Revenue,Chorley BC Petty Cash,16301
Chorley Borough Council,http://statistics.data.gov.uk/id/local-authority/30UE,Central Support Services,1009,Chief Executives Office,Games/Playing Field Equipment,40009,"Equipment, Furniture & Materia",5023,keys,10/12/2015,108236,19.00,Revenue,Chorley BC Petty Cash,16301
Chorley Borough Council,http://statistics.data.gov.uk/id/local-authority/30UE,Business Support,1095,Chief Executives Office,Miscellaneous Expenses,40200,Miscellaneous Expenses,5034,charger,10/12/2015,108236,4.00,Revenue,Chorley BC Petty Cash,16301
Chorley Borough Council,http://statistics.data.gov.uk/id/local-authority/30UE,Unapportionable Central OHeads,1009,Chief Executives Office,Exhibitions & Special Events,40158,Miscellaneous Expenses,5034,raffle tickets,10/12/2015,108236,3.32,Revenue,Chorley BC Petty Cash,16301
Chorley Borough Council,http://statistics.data.gov.uk/id/local-authority/30UE,Unapportionable Central OHeads,1009,Chief Executives Office,Exhibitions & Special Events,40158,Miscellaneous Expenses,5034,raffle tickets,10/12/2015,108236,3.32,Revenue,Chorley BC Petty Cash,16301
Chorley Borough Council,http://statistics.data.gov.uk/id/local-authority/30UE,Unapportionable Central OHeads,1009,Chief Executives Office,Refreshments,40036,Catering,5024,orange juice,10/12/2015,108236,9.58,Revenue,Chorley BC Petty Cash,16301
Chorley Borough Council,http://statistics.data.gov.uk/id/local-authority/30UE,Unapportionable Central OHeads,1009,Chief Executives Office,Refreshments,40036,Catering,5024,mince pies,10/12/2015,108236,6.00,Revenue,Chorley BC Petty Cash,16301
Chorley Borough Council,http://statistics.data.gov.uk/id/local-authority/30UE,Democratic Represent and  Mgnt,1007,Chief Executives Office,Miscellaneous Expenses,40200,Miscellaneous Expenses,5034,sundries,10/12/2015,108236,11.69,Revenue,Chorley BC Petty Cash,16301
Chorley Borough Council,http://statistics.data.gov.uk/id/local-authority/30UE,Community Development,1097,Policy & Performance,Grants To Other Organisations,40127,Grants and Subscriptions,5031,Half year funding 2015/16 for the delivery of advice services in Chorley,11/12/2015,108313,"28,400.00",Revenue,Chorley Sth Ribble & Dist Citizen Advice Bureaux,17035
Chorley Borough Council,http://statistics.data.gov.uk/id/local-authority/30UE,Unapportionable Central OHeads,1009,Governance,Planned Maintenance,20006,Repairs Maintenance & Alts,5005,Blanket order for PPM works until end of March 2016.,02/12/2015,107991,660.00,Revenue,Chubb Electronic Sec Sys Ltd,16228
Chorley Borough Council,http://statistics.data.gov.uk/id/local-authority/30UE,Unapportionable Central OHeads,1009,Shared Service Arrangement,Training Course Fees,17010,Indirect Employee Expenses,5002,course and study materials main course - Strategic Leadership,18/12/2015,107512,915.00,Revenue,CIPFA,16201
Chorley Borough Council,http://statistics.data.gov.uk/id/local-authority/30UE,Unapportionable Central OHeads,1009,Shared Service Arrangement,Training Course Fees,17010,Indirect Employee Expenses,5002,course and study materials revision course - Strategic Leadership,18/12/2015,107512,165.00,Revenue,CIPFA,16201
Chorley Borough Council,http://statistics.data.gov.uk/id/local-authority/30UE,Unapportionable Central OHeads,1009,Shared Service Arrangement,Training Course Fees,17010,Indirect Employee Expenses,5002,course and study materials main course - Strategic Financial Management,18/12/2015,107512,"1,680.00",Revenue,CIPFA,16201
Chorley Borough Council,http://statistics.data.gov.uk/id/local-authority/30UE,Unapportionable Central OHeads,1009,Shared Service Arrangement,Training Course Fees,17010,Indirect Employee Expenses,5002,course and study materials revision course - Strategic Financial Management,18/12/2015,107512,450.00,Revenue,CIPFA,16201
Chorley Borough Council,http://statistics.data.gov.uk/id/local-authority/30UE,Community Development,1097,Policy & Performance,Core Funding Grants,40133,Grants and Subscriptions,5031,funding,09/12/2015,107811,450.00,Revenue,Circle Counselling Service,53525
Chorley Borough Council,http://statistics.data.gov.uk/id/local-authority/30UE,Economic Development,1096,Governance,Tools & Equipment - Purchase,40003,"Equipment, Furniture & Materia",5023,Provision for gazebos markets 6 x Corner legs 6 x legs no feet 4 x patch for repair,10/12/2015,108251,380.00,Revenue,City B Group Ltd,47300
Chorley Borough Council,http://statistics.data.gov.uk/id/local-authority/30UE,Unapportionable Central OHeads,1009,Shared Service Arrangement,Computer Software-Additional,40102,Communication and Computing,5028,Upgrade and installation of Civica ICON version 14.2 to meet PCI-DSS v3 requirements.,04/12/2015,107014,"8,160.00",Revenue,Civica UK Limited,17463
Chorley Borough Council,http://statistics.data.gov.uk/id/local-authority/30UE,Service Management & Support,1009,Streetscene & Leisure Contracts,Hire Of Transport,30028,Contrct Hire & Operating Lease,5018,Hire of tractor with front loader for Chorley Council at price quoted 500 per week,18/12/2015,108044,500.00,Revenue,Clarke & Pulman Ltd,17745
Chorley Borough Council,http://statistics.data.gov.uk/id/local-authority/30UE,Central Support Services,1009,Health Environment & Neighbourhoods,Training Course Fees,17010,Indirect Employee Expenses,5002,Delivery of Inclusive Coaching: Disability (3hrs) plus 16 resources,09/12/2015,108111,457.84,Revenue,Coachwise Ltd,21114
Chorley Borough Council,http://statistics.data.gov.uk/id/local-authority/30UE,Central Support Services,1009,Health Environment & Neighbourhoods,Training Course Fees,17010,Indirect Employee Expenses,5002,,09/12/2015,108111,10.83,Revenue,Coachwise Ltd,21114
Chorley Borough Council,http://statistics.data.gov.uk/id/local-authority/30UE,Central Support Services,1009,Governance,Training Course Fees,17010,Indirect Employee Expenses,5002,Candidate attend JCT contracts course on 29/4/15.,18/12/2015,108361,298.00,Revenue,Construction Study Centre Ltd,69638
Chorley Borough Council,http://statistics.data.gov.uk/id/local-authority/30UE,Unapportionable Central OHeads,1009,Governance,General Repairs - Reactive,20004,Repairs Maintenance & Alts,5005,Blanket order for REACTIVE works until end of March 2016.,02/12/2015,107886,405.52,Revenue,Corlett Electrical Eng Co Ltd,16271
Chorley Borough Council,http://statistics.data.gov.uk/id/local-authority/30UE,Unapportionable Central OHeads,1009,Governance,Planned Maintenance,20006,Repairs Maintenance & Alts,5005,PPM works until end of March 2015.,18/12/2015,108335,429.66,Revenue,Corlett Electrical Eng Co Ltd,16271
Chorley Borough Council,http://statistics.data.gov.uk/id/local-authority/30UE,Unapportionable Central OHeads,1009,Governance,Planned Maintenance,20006,Repairs Maintenance & Alts,5005,PPM works until end of March 2015.,18/12/2015,108338,280.51,Revenue,Corlett Electrical Eng Co Ltd,16271
Chorley Borough Council,http://statistics.data.gov.uk/id/local-authority/30UE,Unapportionable Central OHeads,1009,Governance,Planned Maintenance,20006,Repairs Maintenance & Alts,5005,PPM works until end of March 2015.,18/12/2015,108344,291.16,Revenue,Corlett Electrical Eng Co Ltd,16271
Chorley Borough Council,http://statistics.data.gov.uk/id/local-authority/30UE,Unapportionable Central OHeads,1009,Governance,Planned Maintenance,20006,Repairs Maintenance & Alts,5005,PPM blanket order until September 2015.,18/12/2015,108345,250.84,Revenue,Corlett Electrical Eng Co Ltd,16271
Chorley Borough Council,http://statistics.data.gov.uk/id/local-authority/30UE,Unapportionable Central OHeads,1009,Governance,Planned Maintenance,20006,Repairs Maintenance & Alts,5005,PPM blanket order until September 2015.,18/12/2015,108350,323.79,Revenue,Corlett Electrical Eng Co Ltd,16271
Chorley Borough Council,http://statistics.data.gov.uk/id/local-authority/30UE,Service Management & Support,1009,Streetscene & Leisure Contracts,Grounds Maintenance Contractor,20043,Grounds Maintenance Costs,5013,Various tree work completed,09/12/2015,108114,"2,700.00",Revenue,Cornthwaite Tree Care,21250
Chorley Borough Council,http://statistics.data.gov.uk/id/local-authority/30UE,Unapportionable Central OHeads,1009,Governance,General Repairs - Reactive,20004,Repairs Maintenance & Alts,5005,gillibrand,18/12/2015,108442,264.46,Revenue,Corona Energy Retail 2 Ltd,67249
Chorley Borough Council,http://statistics.data.gov.uk/id/local-authority/30UE,Business Support,1095,Economic Development,Miscellaneous Expenses,40200,Miscellaneous Expenses,5034,Commercial Property Monthly copy for Chorley section,04/12/2015,108038,"1,380.00",Revenue,CPM/Commercial Property Monthly,73021
Chorley Borough Council,http://statistics.data.gov.uk/id/local-authority/30UE,Business Support,1095,Policy & Performance,Research & Feasibilities,40079,Services,5027,transport engineering services relating to the Market Walk Extension project,09/12/2015,107313,"1,500.00",Revenue,Curtins Consulting Engineers,20049
Chorley Borough Council,http://statistics.data.gov.uk/id/local-authority/30UE,Service Management & Support,1009,Streetscene & Leisure Contracts,Hire Of Transport,30028,Contrct Hire & Operating Lease,5018,Hire of Ford Transit Tipper EU63 YGT,16/12/2015,107306,385.71,Revenue,Dawson Rental Sweepers,22011
Chorley Borough Council,http://statistics.data.gov.uk/id/local-authority/30UE,Unapportionable Central OHeads,1009,Policy & Performance,Exhibitions & Special Events,40158,Miscellaneous Expenses,5034,"Supply, erection, operation for three weeks and dismantling of the Big Wheel Christmas attraction",16/12/2015,108327,"16,000.00",Revenue,de Koning Leisure Group Ltd,57082
Chorley Borough Council,http://statistics.data.gov.uk/id/local-authority/30UE,Service Management & Support,1009,Streetscene & Leisure Contracts,Tools & Equipment - Purchase,40003,"Equipment, Furniture & Materia",5023,Supply items as on delivery note number 017591 already supplied,22/12/2015,108587,70.38,Revenue,Dick Leigh,17138
Chorley Borough Council,http://statistics.data.gov.uk/id/local-authority/30UE,Service Management & Support,1009,Streetscene & Leisure Contracts,Tools & Equipment - Purchase,40003,"Equipment, Furniture & Materia",5023,Supply items as on document number 017590 already supplied,22/12/2015,108587,139.51,Revenue,Dick Leigh,17138
Chorley Borough Council,http://statistics.data.gov.uk/id/local-authority/30UE,Service Management & Support,1009,Streetscene & Leisure Contracts,Tools & Equipment - Purchase,40003,"Equipment, Furniture & Materia",5023,Supply items as on document number 017589 already supplied,22/12/2015,108587,130.11,Revenue,Dick Leigh,17138
Chorley Borough Council,http://statistics.data.gov.uk/id/local-authority/30UE,Service Management & Support,1009,Streetscene & Leisure Contracts,Tools & Equipment - Purchase,40003,"Equipment, Furniture & Materia",5023,Supply items as on document number 017683 already supplied,22/12/2015,108587,196.39,Revenue,Dick Leigh,17138
Chorley Borough Council,http://statistics.data.gov.uk/id/local-authority/30UE,Corporate Management,1008,Streetscene & Leisure Contracts,Tools & Equipment - Purchase,40003,"Equipment, Furniture & Materia",5023,RADAR key for disabled toilets,16/12/2015,108312,450.00,Revenue,Easyturn Key Company,16298
Chorley Borough Council,http://statistics.data.gov.uk/id/local-authority/30UE,Corporate Management,1008,Streetscene & Leisure Contracts,Tools & Equipment - Purchase,40003,"Equipment, Furniture & Materia",5023,postage costs,16/12/2015,108312,12.00,Revenue,Easyturn Key Company,16298
Chorley Borough Council,http://statistics.data.gov.uk/id/local-authority/30UE,Central Support Services,1009,"Customer, ICT & Transactional",Mobile Phones,40086,Communication and Computing,5028,16440033,18/12/2015,108532,535.26,Revenue,EE - Orange,16486
Chorley Borough Council,http://statistics.data.gov.uk/id/local-authority/30UE,Unapportionable Central OHeads,1009,"Customer, ICT & Transactional",Mobile Phones,40086,Communication and Computing,5028,"1gb data bundle on 4g network - 2 year contract. SIMs only. 70 users x 2.50 per month x 2 years = 4,200. ",22/12/2015,108531,177.09,Revenue,EE LIMITED,63366
Chorley Borough Council,http://statistics.data.gov.uk/id/local-authority/30UE,Unapportionable Central OHeads,1009,"Customer, ICT & Transactional",Mobile Phones,40086,Communication and Computing,5028,"1gb data bundle on 4g network - 2 year contract. SIMs only. 30 users x 2.50 per month x 2 years = 1,800. ",22/12/2015,108531,90.00,Revenue,EE LIMITED,63366
Chorley Borough Council,http://statistics.data.gov.uk/id/local-authority/30UE,Central Support Services,1009,"Customer, ICT & Transactional",Mobile Phones,40086,Communication and Computing,5028,"1gb data bundle on 4g network - 2 year contract. SIMs only. 30 users x 2.50 per month x 2 years = 1,800. ",22/12/2015,108531,90.00,Revenue,EE LIMITED,63366
Chorley Borough Council,http://statistics.data.gov.uk/id/local-authority/30UE,Central Support Services,1009,"Customer, ICT & Transactional",Mobile Phones,40086,Communication and Computing,5028,"4g iPhone 5s, 16GB, space grey, unlimited calls & texts, 1GB data.15 connections at 10 per user per month for 24 months",22/12/2015,108531,150.00,Revenue,EE LIMITED,63366
Chorley Borough Council,http://statistics.data.gov.uk/id/local-authority/30UE,Central Support Services,1009,"Customer, ICT & Transactional",Mobile Phones,40086,Communication and Computing,5028,"4g iPhone 5s, 16GB, space grey, unlimited calls & texts,1GB data. 10 connections at 10 per user per month for 24 months",22/12/2015,108531,100.00,Revenue,EE LIMITED,63366
Chorley Borough Council,http://statistics.data.gov.uk/id/local-authority/30UE,Central Support Services,1009,"Customer, ICT & Transactional",Mobile Phones,40086,Communication and Computing,5028,"4g iPhone 5s, 16GB, space grey, unlimited calls & texts,1GB data.2 connections at 10 per user per month for 24 months",22/12/2015,108531,20.00,Revenue,EE LIMITED,63366
Chorley Borough Council,http://statistics.data.gov.uk/id/local-authority/30UE,Business Support,1095,Economic Development,Miscellaneous Expenses,40200,Miscellaneous Expenses,5034,Consulting on Chorley Skills Framework,11/12/2015,107993,"14,175.00",Revenue,EKOSGEN,71520
Chorley Borough Council,http://statistics.data.gov.uk/id/local-authority/30UE,Central Support Services,1009,Economic Development,Tools & Equipment - Maintenance,40005,"Equipment, Furniture & Materia",5023,to supply the installation  of an electricity supply to the relocated CCTV pole at Clayton Brook Village Hall,16/12/2015,107287,475.00,Revenue,Electricity North West Ltd,17118
Chorley Borough Council,http://statistics.data.gov.uk/id/local-authority/30UE,Unapportionable Central OHeads,1009,Governance,Planned Maintenance,20006,Repairs Maintenance & Alts,5005,PPM blanket order until September 2015.,11/12/2015,108170,260.00,Revenue,Energy Team (UK) Ltd,67330
Chorley Borough Council,http://statistics.data.gov.uk/id/local-authority/30UE,Democratic Represent and  Mgnt,1007,Streetscene & Leisure Contracts,Rent/Hire Of Premises,20017,Premises Rents,5007,"Duxbury Coach House   2015/16 Financial Year Rent - 10,625 per qtr To be invoiced quarterly Q1: 25/03/15 - 24/06/15    ",09/12/2015,108233,"10,625.00",Revenue,European Settled Estates Plc,16495
Chorley Borough Council,http://statistics.data.gov.uk/id/local-authority/30UE,Democratic Represent and  Mgnt,1007,Streetscene & Leisure Contracts,Rent/Hire Of Premises,20017,Premises Rents,5007,"Service Charge - 1.125 per qtr To be invoiced quarterly Q1: 25/03/15 - 24/06/15    Q2: 25/06/15 - 24/09/15 Q3: 25/09/15 ",09/12/2015,108233,"1,125.00",Revenue,European Settled Estates Plc,16495
Chorley Borough Council,http://statistics.data.gov.uk/id/local-authority/30UE,Service Management & Support,1009,Streetscene & Leisure Contracts,Supplies-Grounds Maintenance,40025,"Equipment, Furniture & Materia",5023,10 - Elm Ulmus Lutece,02/12/2015,107933,307.50,Revenue,Everglades Nurseries Ltd,20202
Chorley Borough Council,http://statistics.data.gov.uk/id/local-authority/30UE,Service Management & Support,1009,Streetscene & Leisure Contracts,Hire Of Transport,30028,Contrct Hire & Operating Lease,5018,Hire of Case tractor and McConnell flail at price quoted via the chest for 12 month period. 0/04/2015 through to 31/03/2015,18/12/2015,107406,"1,565.29",Revenue,F R Sharrock Ltd,18091
Chorley Borough Council,http://statistics.data.gov.uk/id/local-authority/30UE,Service Management & Support,1009,Streetscene & Leisure Contracts,Registered Plant - Maintenance,40247,"Equipment, Furniture & Materia",5023,Supply items as on Pro-forma invoice No 109197 already supplied,04/12/2015,108021,392.80,Revenue,F R Sharrock Ltd,18091
Chorley Borough Council,http://statistics.data.gov.uk/id/local-authority/30UE,Service Management & Support,1009,Streetscene & Leisure Contracts,Hire Of Transport,30028,Contrct Hire & Operating Lease,5018,Hire of Case tractor McConnell flail at price quoted via the chest for 12 month period. From 0/04/2015 through to 31/03/2015,18/12/2015,108255,"1,714.37",Revenue,F R Sharrock Ltd,18091
Chorley Borough Council,http://statistics.data.gov.uk/id/local-authority/30UE,Service Management & Support,1009,Streetscene & Leisure Contracts,Registered Plant - Maintenance,40247,"Equipment, Furniture & Materia",5023,Supply items as per Pro-forma invoice No 109628 already supplied,22/12/2015,108605,285.77,Revenue,F R Sharrock Ltd,18091
Chorley Borough Council,http://statistics.data.gov.uk/id/local-authority/30UE,Unapportionable Central OHeads,1009,HR & Org. Development,Professional Fees,40063,Services,5027,Professional Charges for advice,09/12/2015,108247,705.00,Revenue,Forbes Solicitors,17527
Chorley Borough Council,http://statistics.data.gov.uk/id/local-authority/30UE,Unapportionable Central OHeads,1009,Governance,Refreshments,40036,Catering,5024,1 case of Tetley teabags,18/12/2015,108278,38.16,Revenue,G C Birchall Ltd T/A Birchall Foodservice,69765
Chorley Borough Council,http://statistics.data.gov.uk/id/local-authority/30UE,Unapportionable Central OHeads,1009,Governance,Refreshments,40036,Catering,5024,8 x 2kg boxes of Sweet Assorted biscuits @ 6.28,18/12/2015,108278,50.24,Revenue,G C Birchall Ltd T/A Birchall Foodservice,69765
Chorley Borough Council,http://statistics.data.gov.uk/id/local-authority/30UE,Unapportionable Central OHeads,1009,Governance,Refreshments,40036,Catering,5024,1 case of Nescafe Gold Blend (6x500g),18/12/2015,108278,123.03,Revenue,G C Birchall Ltd T/A Birchall Foodservice,69765
Chorley Borough Council,http://statistics.data.gov.uk/id/local-authority/30UE,Unapportionable Central OHeads,1009,Governance,Refreshments,40036,Catering,5024,cordial,18/12/2015,108278,44.45,Revenue,G C Birchall Ltd T/A Birchall Foodservice,69765
Chorley Borough Council,http://statistics.data.gov.uk/id/local-authority/30UE,Capital,Capital,Housing,Grants,3002,Capital Expenditure,Capital,DFG,18/12/2015,108486,"3,520.00",Capital,G McGavock Ltd,16921
Chorley Borough Council,http://statistics.data.gov.uk/id/local-authority/30UE,Business Support,1095,Governance,Gas,20014,Energy Costs,5006,gas,02/12/2015,107814,655.49,Revenue,Gazprom Energy,56502
Chorley Borough Council,http://statistics.data.gov.uk/id/local-authority/30UE,Community Development,1097,Policy & Performance,Core Funding Grants,40133,Grants and Subscriptions,5031,funding,09/12/2015,107813,675.00,Revenue,Genesis Care (North West) Ltd,53287
Chorley Borough Council,http://statistics.data.gov.uk/id/local-authority/30UE,Business Support,1095,Governance,Asset Maintenance Fund,20012,Repairs Maintenance & Alts,5005,Contribution to tenant`s fit out works at Unit 10 Market Walk Shopping Centre.,02/12/2015,107996,"8,000.00",Revenue,Gibsons Sports Ltd,73012
Chorley Borough Council,http://statistics.data.gov.uk/id/local-authority/30UE,Service Management & Support,1009,Streetscene & Leisure Contracts,Tools & Equipment - Purchase,40003,"Equipment, Furniture & Materia",5023,Supply 1 x Double Orderly Barrows with tools carrier in green as per conversation with at quoted price,09/12/2015,108252,720.00,Revenue,Glasdon UK Ltd,17505
Chorley Borough Council,http://statistics.data.gov.uk/id/local-authority/30UE,Central Support Services,1009,Health Environment & Neighbourhoods,External Contractor,40198,Miscellaneous Expenses,5034,Reactive & proactive graffiti removal,22/12/2015,108535,"1,250.00",Revenue,Graffiti Removal (North) Ltd,17320
Chorley Borough Council,http://statistics.data.gov.uk/id/local-authority/30UE,Corporate Management,1008,Shared Service Arrangement,External Audit,40064,Services,5027,2015-16 External Audit Fee,16/12/2015,108332,"11,313.75",Revenue,Grant Thornton UK LLP,57322
Chorley Borough Council,http://statistics.data.gov.uk/id/local-authority/30UE,Central Support Services,1009,Health Environment & Neighbourhoods,Scientific Fees,40075,Services,5027,Lancashire Planning and air quality guidance- Chorley contribution,02/12/2015,107755,500.00,Revenue,Green Sphere Ltd,72659
Chorley Borough Council,http://statistics.data.gov.uk/id/local-authority/30UE,Elections,1012,Governance,Computer Software-Maintenance,40107,Communication and Computing,5028,Migration of Avantguard on 8 December 2015,22/12/2015,108571,520.00,Revenue,Halarose Limited,18133
Chorley Borough Council,http://statistics.data.gov.uk/id/local-authority/30UE,Service Management & Support,1009,Streetscene & Leisure Contracts,Publicity - Advertising,40157,Miscellaneous Expenses,5034,Printing of quote no 112734 and 112733 for Yarrow Valley General Information and History Trail leaflet.,02/12/2015,107937,452.00,Revenue,Haslam PrintersLtd,21777
Chorley Borough Council,http://statistics.data.gov.uk/id/local-authority/30UE,Central Support Services,1009,"Customer, ICT & Transactional",Computer Software-Maintenance,40107,Communication and Computing,5028,Software maintenance for Live VMware (system handle LIVE VMWARE) for period 01/04/2015 to 31/03/2016,18/12/2015,102799,"3,570.00",Revenue,Hewlett - Packard Limited,22335
Chorley Borough Council,http://statistics.data.gov.uk/id/local-authority/30UE,Central Support Services,1009,"Customer, ICT & Transactional",Computer Software-Maintenance,40107,Communication and Computing,5028,Software maintenance for SRM (system handle VMWARE-SRM) for period 01/04/2015 to 31/03/2016,18/12/2015,102800,450.66,Revenue,Hewlett - Packard Limited,22335
Chorley Borough Council,http://statistics.data.gov.uk/id/local-authority/30UE,Community Development,1097,Policy & Performance,Core Funding Grants,40133,Grants and Subscriptions,5031,small comm funding,16/12/2015,108270,300.00,Revenue,Hollinshead Street Girl Guides,72801
Chorley Borough Council,http://statistics.data.gov.uk/id/local-authority/30UE,Community Development,1097,Policy & Performance,Core Funding Grants,40133,Grants and Subscriptions,5031,community funding,09/12/2015,107808,400.00,Revenue,Hollinshead Street Scout Group,66379
Chorley Borough Council,http://statistics.data.gov.uk/id/local-authority/30UE,Business Support,1095,Governance,Fire Alarms,20072,Fixtures and Fittings,5010,replace sensor in Gill St main building 31.07.15,09/12/2015,108214,349.22,Revenue,Honeywell - Novar Systems Ltd,16689
Chorley Borough Council,http://statistics.data.gov.uk/id/local-authority/30UE,Unapportionable Central OHeads,1009,Governance,Fire Alarms,20072,Fixtures and Fittings,5010,Replace 2 sensors in Gill St main building 24.09.15,10/12/2015,108244,482.27,Revenue,Honeywell - Novar Systems Ltd,16689
Chorley Borough Council,http://statistics.data.gov.uk/id/local-authority/30UE,Democratic Represent and  Mgnt,1007,Streetscene & Leisure Contracts,Miscellaneous Expenses,40200,Miscellaneous Expenses,5034,Inflatable screen for Astley Illuminated Event Saturday 21st November and Sunday 22nd November 2015.,09/12/2015,108052,"1,300.00",Revenue,Inflatable Flix,72482
Chorley Borough Council,http://statistics.data.gov.uk/id/local-authority/30UE,Control Accounts,Control,Shared Service Arrangement,Manual Control Account,1,Balance Sheet,Balance,,14/12/2015,107511,"7,385.87",Revenue,Inland Revenue 065py00102078,17445
Chorley Borough Council,http://statistics.data.gov.uk/id/local-authority/30UE,Control Accounts,Control,Shared Service Arrangement,Manual Control Account,1,Balance Sheet,Balance,,14/12/2015,107978,374.20,Revenue,Inland Revenue 065py00102078,17445
Chorley Borough Council,http://statistics.data.gov.uk/id/local-authority/30UE,Central Support Services,1009,Health Environment & Neighbourhoods,Play Events,40181,Miscellaneous Expenses,5034,Delivery of Circus Skills on Wednesday 5th August,18/12/2015,108524,420.00,Revenue,Interact Entertainments Ltd T/A Circus Sensible,18589
Chorley Borough Council,http://statistics.data.gov.uk/id/local-authority/30UE,Unapportionable Central OHeads,1009,"Customer, ICT & Transactional",Asset Maintenance Fund,20012,Repairs Maintenance & Alts,5005,Installation of 1 x quad cat5e socket and 1 x TV Coax cable to Committee Room 1 and the same to committee room 2,09/12/2015,108056,568.75,Revenue,Interconnect Network Systems,21292
Chorley Borough Council,http://statistics.data.gov.uk/id/local-authority/30UE,Unapportionable Central OHeads,1009,"Customer, ICT & Transactional",Asset Maintenance Fund,20012,Repairs Maintenance & Alts,5005,"Installation of 2 x dual Cat5e sockets (4 cables), in the Staff Canteen area on the 2nd Floor of the Union Street Building.",09/12/2015,108056,279.01,Revenue,Interconnect Network Systems,21292
Chorley Borough Council,http://statistics.data.gov.uk/id/local-authority/30UE,Business Support,1095,Economic Development,Cleaning/Attendants' Services,20041,Cleaning and Domestic Supplies,5012,Daily Cleaning Services for Market Walk SC November 2015,02/12/2015,107983,"4,043.04",Revenue,Interserve,70619
Chorley Borough Council,http://statistics.data.gov.uk/id/local-authority/30UE,Community Development,1097,Governance,Rent/Hire Of Premises,20017,Premises Rents,5007,"Rent and insurance charge for ADDRESS REDACTED, Chorley.",18/12/2015,108318,"7,218.75",Revenue,J R Keys,17124
Chorley Borough Council,http://statistics.data.gov.uk/id/local-authority/30UE,Business Support,1095,Governance,Refuse Collection,20037,Cleaning and Domestic Supplies,5012,To supply Waste Compactor services to MWSC HD260TR Serial No: 02601707021135 October 2015,09/12/2015,107248,270.00,Revenue,J&H Rentals Limited,70699
Chorley Borough Council,http://statistics.data.gov.uk/id/local-authority/30UE,Business Support,1095,Economic Development,Refuse Collection,20037,Cleaning and Domestic Supplies,5012,To supply Waste Compactor services to MWSC HD260TR Serial No: 02601707021135 November 2015,10/12/2015,108025,270.00,Revenue,J&H Rentals Limited,70699
Chorley Borough Council,http://statistics.data.gov.uk/id/local-authority/30UE,Unapportionable Central OHeads,1009,Governance,Planned Maintenance,20006,Repairs Maintenance & Alts,5005,Blanket order for PPM works from October 2015.,18/12/2015,108319,570.00,Revenue,James Mercer,20194
Chorley Borough Council,http://statistics.data.gov.uk/id/local-authority/30UE,Service Management & Support,1009,Streetscene & Leisure Contracts,Supplies-Grounds Maintenance,40025,"Equipment, Furniture & Materia",5023,"Litter Picker, extra long, 900mm (36``)  Product Code = SpeCH001",02/12/2015,107947,247.00,Revenue,Jewsons Limited,17844
Chorley Borough Council,http://statistics.data.gov.uk/id/local-authority/30UE,Service Management & Support,1009,Streetscene & Leisure Contracts,Supplies-Grounds Maintenance,40025,"Equipment, Furniture & Materia",5023,"Litter Picker, standard 610mm (24``),  Product Code = SpeCH001",02/12/2015,107947,247.00,Revenue,Jewsons Limited,17844
Chorley Borough Council,http://statistics.data.gov.uk/id/local-authority/30UE,Service Management & Support,1009,Streetscene & Leisure Contracts,Supplies-Grounds Maintenance,40025,"Equipment, Furniture & Materia",5023,Street name plate post galvanized (1200mm x 76mm diameter) product code = speCH009,09/12/2015,108108,"1,050.60",Revenue,Jewsons Limited,17844
Chorley Borough Council,http://statistics.data.gov.uk/id/local-authority/30UE,Service Management & Support,1009,Streetscene & Leisure Contracts,Supplies-Grounds Maintenance,40025,"Equipment, Furniture & Materia",5023,26 lengths of Planed all round timber at 3.6m x 200mm x 50mm,09/12/2015,108130,336.96,Revenue,John H Mayor & Sons Ltd,16635
Chorley Borough Council,http://statistics.data.gov.uk/id/local-authority/30UE,Service Management & Support,1009,Streetscene & Leisure Contracts,Supplies-Grounds Maintenance,40025,"Equipment, Furniture & Materia",5023,20 boxes of coach bolts 10 x 200mm,09/12/2015,108130,76.20,Revenue,John H Mayor & Sons Ltd,16635
Chorley Borough Council,http://statistics.data.gov.uk/id/local-authority/30UE,Service Management & Support,1009,Streetscene & Leisure Contracts,Supplies-Grounds Maintenance,40025,"Equipment, Furniture & Materia",5023,2 boxes of washers ( 200 ) to fit size 10 coach bolts,09/12/2015,108130,3.80,Revenue,John H Mayor & Sons Ltd,16635
Chorley Borough Council,http://statistics.data.gov.uk/id/local-authority/30UE,Service Management & Support,1009,Streetscene & Leisure Contracts,Supplies-Grounds Maintenance,40025,"Equipment, Furniture & Materia",5023,"16 lengths of planed all round timber, @ 3.6m x 150mm x 75mm",09/12/2015,108131,256.00,Revenue,John H Mayor & Sons Ltd,16635
Chorley Borough Council,http://statistics.data.gov.uk/id/local-authority/30UE,Service Management & Support,1009,Streetscene & Leisure Contracts,Supplies-Grounds Maintenance,40025,"Equipment, Furniture & Materia",5023,"2 rolls of aviary mesh, 900mm wide and 20mm x 10mm",09/12/2015,108131,220.00,Revenue,John H Mayor & Sons Ltd,16635
Chorley Borough Council,http://statistics.data.gov.uk/id/local-authority/30UE,Service Management & Support,1009,Streetscene & Leisure Contracts,Supplies-Grounds Maintenance,40025,"Equipment, Furniture & Materia",5023,2 x 6 metres Christmas trees - Spruce 2 x 3.6 metres Christmas trees with bases - Non drop 2.4 metre Christmas tree with,09/12/2015,108135,883.00,Revenue,John H Mayor & Sons Ltd,16635
Chorley Borough Council,http://statistics.data.gov.uk/id/local-authority/30UE,Development Control,1091,Planning,Statutory Notices,40160,Miscellaneous Expenses,5034,Planning Public Notices to appear in the Chorley Guardian April 2015 to March 2016,04/12/2015,107894,543.84,Revenue,Johnston Publishing Ltd,20072
Chorley Borough Council,http://statistics.data.gov.uk/id/local-authority/30UE,Corporate Management,1008,Policy & Performance,Publicity - Advertising,40157,Miscellaneous Expenses,5034,4 x full page adverts in the LEP to promote Christmas activities,09/12/2015,108048,441.00,Revenue,Johnston Publishing Ltd,20072
Chorley Borough Council,http://statistics.data.gov.uk/id/local-authority/30UE,Development Control,1091,Planning,Computer Software-Purchase,40100,Communication and Computing,5028,credited,22/12/2015,108171,527.36,Revenue,Johnston Publishing Ltd,20072
Chorley Borough Council,http://statistics.data.gov.uk/id/local-authority/30UE,Development Control,1091,Planning,Statutory Notices,40160,Miscellaneous Expenses,5034,Planning Public Notices to appear in the Chorley Guardian April 2015 to March 2016,16/12/2015,108172,527.36,Revenue,Johnston Publishing Ltd,20072
Chorley Borough Council,http://statistics.data.gov.uk/id/local-authority/30UE,Unapportionable Central OHeads,1009,Policy & Performance,Publicity - Advertising,40157,Miscellaneous Expenses,5034,4 x full page adverts in the LEP to promote Christmas activities,22/12/2015,108582,724.70,Revenue,Johnston Publishing Ltd,20072
Chorley Borough Council,http://statistics.data.gov.uk/id/local-authority/30UE,Corporate Management,1008,Policy & Performance,Publicity - Advertising,40157,Miscellaneous Expenses,5034,4 x full page adverts in the LEP to promote Christmas activities,22/12/2015,108582,333.70,Revenue,Johnston Publishing Ltd,20072
Chorley Borough Council,http://statistics.data.gov.uk/id/local-authority/30UE,Capital,Capital,Housing,Grants,3002,Capital Expenditure,Capital,ADDRESS REDACTED,04/12/2015,108078,"4,085.00",Capital,K Berry Ltd,16421
Chorley Borough Council,http://statistics.data.gov.uk/id/local-authority/30UE,Capital,Capital,Housing,Grants,3002,Capital Expenditure,Capital,ADDRESS REDACTED,04/12/2015,108079,"2,990.00",Capital,K Berry Ltd,16421
Chorley Borough Council,http://statistics.data.gov.uk/id/local-authority/30UE,Capital,Capital,Housing,Grants,3002,Capital Expenditure,Capital,ADDRESS REDACTED,04/12/2015,108080,"4,475.00",Capital,K Berry Ltd,16421
Chorley Borough Council,http://statistics.data.gov.uk/id/local-authority/30UE,Capital,Capital,Housing,Grants,3002,Capital Expenditure,Capital,ADDRESS REDACTED,04/12/2015,108081,"4,450.00",Capital,K Berry Ltd,16421
Chorley Borough Council,http://statistics.data.gov.uk/id/local-authority/30UE,Capital,Capital,Housing,Grants,3002,Capital Expenditure,Capital,DFG,18/12/2015,108487,"1,020.00",Capital,K Berry Ltd,16421
Chorley Borough Council,http://statistics.data.gov.uk/id/local-authority/30UE,Central Support Services,1009,"Customer, ICT & Transactional",Computer Equipment-Purchase,40098,Communication and Computing,5028,MICROSOFT SURFACE PRO 4 256GB I7 16GB W10,18/12/2015,108508,"3,248.40",Revenue,Kelway UK Ltd,60681
Chorley Borough Council,http://statistics.data.gov.uk/id/local-authority/30UE,Central Support Services,1009,"Customer, ICT & Transactional",Computer Equipment-Purchase,40098,Communication and Computing,5028,MICROSOFT SURFACE PRO 4 TYPE COVER DEMO BLACK,18/12/2015,108508,99.18,Revenue,Kelway UK Ltd,60681
Chorley Borough Council,http://statistics.data.gov.uk/id/local-authority/30UE,Central Support Services,1009,"Customer, ICT & Transactional",Computer Equipment-Purchase,40098,Communication and Computing,5028,MICROSOFT ARC TOUCH MOUSE WIRELESS SILVER,18/12/2015,108508,99.09,Revenue,Kelway UK Ltd,60681
Chorley Borough Council,http://statistics.data.gov.uk/id/local-authority/30UE,Homelessness,1075,Housing,External Contractor,40198,Miscellaneous Expenses,5034,Provision of Housing Drop In & Mediation,11/12/2015,108321,"4,750.00",Revenue,Key,61252
Chorley Borough Council,http://statistics.data.gov.uk/id/local-authority/30UE,Control Accounts,Control,Shared Service Arrangement,General Balances,100,Balance Sheet,Balance,,18/12/2015,108559,"1,166.85",Revenue,Labour Councillors Association,17577
Chorley Borough Council,http://statistics.data.gov.uk/id/local-authority/30UE,Business Support,1095,Governance,Consultants` Fees,40077,Services,5027,"For professional charges at Unit 1, 102B Market Street, Chorley.",22/12/2015,107535,"2,000.00",Revenue,Lambert Smith Hampton,17687
Chorley Borough Council,http://statistics.data.gov.uk/id/local-authority/30UE,Business Support,1095,Governance,Miscellaneous Expenses,40200,Miscellaneous Expenses,5034,"Joint agent fees in respect of Unit 10 Market Walk, lease to Gibson Sports",22/12/2015,108329,"1,875.00",Revenue,Lambert Smith Hampton,17687
Chorley Borough Council,http://statistics.data.gov.uk/id/local-authority/30UE,Unapportionable Central OHeads,1009,"Customer, ICT & Transactional",Consultants` Fees,40077,Services,5027,DR Hosting - BE7414/2. Services,16/12/2015,103921,591.50,Revenue,Lancashire County Council,17758
Chorley Borough Council,http://statistics.data.gov.uk/id/local-authority/30UE,Unapportionable Central OHeads,1009,"Customer, ICT & Transactional",Computer Equipment-Maintenance,40105,Communication and Computing,5028,DR Hosting - BE7414/2. Annual charges,16/12/2015,103921,"2,400.00",Revenue,Lancashire County Council,17758
Chorley Borough Council,http://statistics.data.gov.uk/id/local-authority/30UE,Capital,Capital,Housing,Grants,3002,Capital Expenditure,Capital,ADDRESS REDACTED,02/12/2015,107685,"5,896.00",Capital,Lancashire County Council,17758
Chorley Borough Council,http://statistics.data.gov.uk/id/local-authority/30UE,Unapportionable Central OHeads,1009,Streetscene & Leisure Contracts,Sewerage/Environment Svcs,20024,Water Services,5009,Carryout lighting works carried at Bengal St depot as per Email dated 23/10/2015,18/12/2015,108033,"2,683.78",Revenue,Lancashire County Council,17758
Chorley Borough Council,http://statistics.data.gov.uk/id/local-authority/30UE,Capital,Capital,Housing,Grants,3002,Capital Expenditure,Capital,DFG,22/12/2015,108488,"9,435.00",Capital,Lancashire County Council,17758
Chorley Borough Council,http://statistics.data.gov.uk/id/local-authority/30UE,Capital,Capital,Housing,Grants,3002,Capital Expenditure,Capital,DFG,22/12/2015,108489,"9,719.00",Capital,Lancashire County Council,17758
Chorley Borough Council,http://statistics.data.gov.uk/id/local-authority/30UE,Capital,Capital,Housing,Grants,3002,Capital Expenditure,Capital,ADDRESS REDACTED,22/12/2015,108598,922.00,Capital,Lancashire County Council,17758
Chorley Borough Council,http://statistics.data.gov.uk/id/local-authority/30UE,Service Management & Support,1009,Streetscene & Leisure Contracts,Vehicle Maintenance,30045,Direct Transport Costs,5016,Please supply and fit parts as per estimate sent on 03/12/15,16/12/2015,108363,568.97,Revenue,LANCASHIRE DAF,18149
Chorley Borough Council,http://statistics.data.gov.uk/id/local-authority/30UE,Corporate Management,1008,Policy & Performance,Other Fees,40212,Miscellaneous Expenses,5034,Subsidy for the provision of a meals on wheels service in Chorley up to 29 November 2015,09/12/2015,108055,867.39,Revenue,Lancashire Fayre,62967
Chorley Borough Council,http://statistics.data.gov.uk/id/local-authority/30UE,Central Support Services,1009,Health Environment & Neighbourhoods,Other Contributions,40145,Grants and Subscriptions,5031,Partnership contribution for 2015/16,16/12/2015,108323,"1,500.00",Revenue,Lancashire Sport Partnership,16348
Chorley Borough Council,http://statistics.data.gov.uk/id/local-authority/30UE,Business Support,1095,Economic Development,Miscellaneous Expenses,40200,Miscellaneous Expenses,5034,SIB Grant,16/12/2015,108084,250.00,Revenue,NAME REDACTED,73056
Chorley Borough Council,http://statistics.data.gov.uk/id/local-authority/30UE,Unapportionable Central OHeads,1009,"Customer, ICT & Transactional",Agency Staff,13000,Direct Employee Expenses,5001,Chorley Council - Empty Homes Review Aug 15,15/12/2015,106427,"6,430.67",Revenue,Liberata (Capacity Grid),67989
Chorley Borough Council,http://statistics.data.gov.uk/id/local-authority/30UE,Unapportionable Central OHeads,1009,"Customer, ICT & Transactional",Agency Staff,13000,Direct Employee Expenses,5001,Chorley Council - Empty Homes Review 2015,18/12/2015,107797,"7,222.13",Revenue,Liberata (Capacity Grid),67989
Chorley Borough Council,http://statistics.data.gov.uk/id/local-authority/30UE,Unapportionable Central OHeads,1009,HR & Org. Development,Service Fees,40056,Services,5027,Driver Management Fee/DVLA Electronic Fee/Nil 3 Licence Checks,18/12/2015,108543,"1,423.50",Revenue,Licence Bureau Limited,71233
Chorley Borough Council,http://statistics.data.gov.uk/id/local-authority/30UE,Community Development,1097,Policy & Performance,Core Funding Grants,40133,Grants and Subscriptions,5031,Small comm funding,09/12/2015,107901,843.61,Revenue,Life Long Song,72791
Chorley Borough Council,http://statistics.data.gov.uk/id/local-authority/30UE,Economic Development,1096,Economic Development,Grants To Other Organisations,40127,Grants and Subscriptions,5031,BIG GRANT,18/12/2015,108452,"4,000.00",Revenue,Little Explorers,61781
Chorley Borough Council,http://statistics.data.gov.uk/id/local-authority/30UE,Local Tax Collection,1010,Governance,Legal Fees,40171,Miscellaneous Expenses,5034,"Property Searches Legal Representation 1,739.13 for 2014/15 2,388.59 for 2015/16",09/12/2015,108022,"1,695.57",Revenue,Local Government Association,16243
Chorley Borough Council,http://statistics.data.gov.uk/id/local-authority/30UE,Corporate Management,1008,Policy & Performance,Publicity - Advertising,40157,Miscellaneous Expenses,5034,Full page adverts in 2 editions of Local Life magazine for Market Walk,04/12/2015,108057,360.00,Revenue,Local Life 247 Ltd.,63624
Chorley Borough Council,http://statistics.data.gov.uk/id/local-authority/30UE,Service Management & Support,1009,Streetscene & Leisure Contracts,Supplies-Grounds Maintenance,40025,"Equipment, Furniture & Materia",5023,1- 6ft  Heskin Bench,09/12/2015,108064,685.00,Revenue,Lost Art Limited,22117
Chorley Borough Council,http://statistics.data.gov.uk/id/local-authority/30UE,Service Management & Support,1009,Streetscene & Leisure Contracts,Grounds Maintenance Contractor,20043,Grounds Maintenance Costs,5013,Various tree work completed,09/12/2015,108123,"8,132.00",Revenue,M J Walker,62044
Chorley Borough Council,http://statistics.data.gov.uk/id/local-authority/30UE,Capital,Capital,Housing,Grants,3002,Capital Expenditure,Capital,ADDRESS REDACTED,18/12/2015,108554,"3,315.00",Capital,M.J Park Building Contractors,20367
Chorley Borough Council,http://statistics.data.gov.uk/id/local-authority/30UE,Unapportionable Central OHeads,1009,HR & Org. Development,Agency Staff,13000,Direct Employee Expenses,5001,Agency Staff,09/12/2015,108097,425.80,Revenue,Matrix SCM Ltd,22128
Chorley Borough Council,http://statistics.data.gov.uk/id/local-authority/30UE,Unapportionable Central OHeads,1009,HR & Org. Development,Agency Staff,13000,Direct Employee Expenses,5001,Agency Staff,09/12/2015,108097,132.24,Revenue,Matrix SCM Ltd,22128
Chorley Borough Council,http://statistics.data.gov.uk/id/local-authority/30UE,Unapportionable Central OHeads,1009,HR & Org. Development,Agency Staff,13000,Direct Employee Expenses,5001,Agency Staff,09/12/2015,108208,165.30,Revenue,Matrix SCM Ltd,22128
Chorley Borough Council,http://statistics.data.gov.uk/id/local-authority/30UE,Unapportionable Central OHeads,1009,HR & Org. Development,Agency Staff,13000,Direct Employee Expenses,5001,Agency Staff,09/12/2015,108208,259.05,Revenue,Matrix SCM Ltd,22128
Chorley Borough Council,http://statistics.data.gov.uk/id/local-authority/30UE,Unapportionable Central OHeads,1009,HR & Org. Development,Agency Staff,13000,Direct Employee Expenses,5001,Agency Staff,16/12/2015,108384,431.74,Revenue,Matrix SCM Ltd,22128
Chorley Borough Council,http://statistics.data.gov.uk/id/local-authority/30UE,Unapportionable Central OHeads,1009,HR & Org. Development,Agency Staff,13000,Direct Employee Expenses,5001,Agency Staff,18/12/2015,108548,339.44,Revenue,Matrix SCM Ltd,22128
Chorley Borough Council,http://statistics.data.gov.uk/id/local-authority/30UE,Capital,Capital,Streetscene & Leisure Contracts,Main Contractor,3007,Capital Expenditure,Capital,20 ton of Ultra tech,16/12/2015,108228,380.76,Capital,Mc & Ma Stewart (Haulage Ltd),16627
Chorley Borough Council,http://statistics.data.gov.uk/id/local-authority/30UE,Service Management & Support,1009,Streetscene & Leisure Contracts,Supplies-Grounds Maintenance,40025,"Equipment, Furniture & Materia",5023,Please supply the following street name plates to Chorley Council specification in accordance with quote from Beck,16/12/2015,108322,389.30,Revenue,Midland Signs (Leicester) Ltd,16606
Chorley Borough Council,http://statistics.data.gov.uk/id/local-authority/30UE,Central Support Services,1009,"Customer, ICT & Transactional",Computer Equipment-Purchase,40098,Communication and Computing,5028,"Hypertec Compaq Equivalent 16GB Kit (2x8GB) PC-530 (product no - 2071048, manufacturer part number 413015-B21-HY)",16/12/2015,108112,623.94,Revenue,MISCO,19161
Chorley Borough Council,http://statistics.data.gov.uk/id/local-authority/30UE,Central Support Services,1009,"Customer, ICT & Transactional",Computer Equipment-Purchase,40098,Communication and Computing,5028,Delivery,16/12/2015,108112,6.00,Revenue,MISCO,19161
Chorley Borough Council,http://statistics.data.gov.uk/id/local-authority/30UE,Service Management & Support,1009,Streetscene & Leisure Contracts,External Contractor,40198,Miscellaneous Expenses,5034,Repairs to War Memorials as per agreed schedule of work,09/12/2015,108234,"2,630.00",Revenue,MJR Masonry Services,56017
Chorley Borough Council,http://statistics.data.gov.uk/id/local-authority/30UE,Service Management & Support,1009,Streetscene & Leisure Contracts,External Contractor,40198,Miscellaneous Expenses,5034,ASTLEY PARK CENOTAPH MEMORIAL PLAQUES AND OTHERS - emergency cleaning/treatment,16/12/2015,108417,450.00,Revenue,MJR Masonry Services,56017
Chorley Borough Council,http://statistics.data.gov.uk/id/local-authority/30UE,Private Sector HSG Renewal,1073,Housing,External Contractor,40198,Miscellaneous Expenses,5034,DFG,18/12/2015,108461,360.00,Revenue,Mobility Care Services,70841
Chorley Borough Council,http://statistics.data.gov.uk/id/local-authority/30UE,Capital,Capital,Housing,Grants,3002,Capital Expenditure,Capital,ADDRESS REDACTED,22/12/2015,108599,"2,970.00",Capital,Mobility Care Services,70841
Chorley Borough Council,http://statistics.data.gov.uk/id/local-authority/30UE,Central Support Services,1009,"Customer, ICT & Transactional",Computer Software-Maintenance,40107,Communication and Computing,5028,modern.gov support fee 01/08/15 to 31/03/16,04/12/2015,108027,"4,673.00",Revenue,Modern Mindset LTD,51367
Chorley Borough Council,http://statistics.data.gov.uk/id/local-authority/30UE,Capital,Capital,Housing,Grants,3002,Capital Expenditure,Capital,ADDRESS REDACTED,10/12/2015,108082,579.36,Capital,Mr J. N. Birkett,73057
Chorley Borough Council,http://statistics.data.gov.uk/id/local-authority/30UE,Development Control,1091,Planning,Refunds,40220,Miscellaneous Expenses,5034,refund of overpayment,18/12/2015,108275,344.00,Revenue,NAME REDACTED,73054
Chorley Borough Council,http://statistics.data.gov.uk/id/local-authority/30UE,Business Support,1095,Economic Development,Grants To Other Organisations,40127,Grants and Subscriptions,5031,Business rate subsidy,18/12/2015,108526,800.00,Revenue,Mr Raju Ahmed (Bay Leaf Indian Restaurant),71750
Chorley Borough Council,http://statistics.data.gov.uk/id/local-authority/30UE,Service Management & Support,1009,Streetscene & Leisure Contracts,Supplies-Grounds Maintenance,40025,"Equipment, Furniture & Materia",5023,Works completed @ Chorley Cemetery,16/12/2015,107943,400.00,Revenue,Mr Stephen Scambler,16710
Chorley Borough Council,http://statistics.data.gov.uk/id/local-authority/30UE,Private Sector HSG Renewal,1073,Housing,Miscellaneous Expenses,40200,Miscellaneous Expenses,5034,Provision of Energy Switching Support Service (funded via LCC Affordable Warmth Fund) December 2015,18/12/2015,108544,750.00,Revenue,Mrs Heather Shaw,65606
Chorley Borough Council,http://statistics.data.gov.uk/id/local-authority/30UE,Unapportionable Central OHeads,1009,Policy & Performance,Exhibitions & Special Events,40158,Miscellaneous Expenses,5034,chorley live payment,09/12/2015,107918,"2,000.00",Revenue,Mrs MJ and Mr AN Stewart,63086
Chorley Borough Council,http://statistics.data.gov.uk/id/local-authority/30UE,Business Support,1095,Economic Development,Grants To Other Organisations,40127,Grants and Subscriptions,5031,business rate subsidy,09/12/2015,108087,274.50,Revenue,NAME REDACTED,73018
Chorley Borough Council,http://statistics.data.gov.uk/id/local-authority/30UE,Business Support,1095,Economic Development,Grants To Other Organisations,40127,Grants and Subscriptions,5031,,16/12/2015,108274,274.50,Revenue,NAME REDACTED,73018
Chorley Borough Council,http://statistics.data.gov.uk/id/local-authority/30UE,Business Support,1095,Economic Development,Grants To Other Organisations,40127,Grants and Subscriptions,5031,,16/12/2015,108274,94.10,Revenue,NAME REDACTED,73018
Chorley Borough Council,http://statistics.data.gov.uk/id/local-authority/30UE,Service Management & Support,1009,Streetscene & Leisure Contracts,Registered Plant - Maintenance,40247,"Equipment, Furniture & Materia",5023,Carryout cylinder grinding and supply bearings as on invoice number 1244 already supplied,18/12/2015,108525,448.80,Revenue,MW Grass Machinery,21616
Chorley Borough Council,http://statistics.data.gov.uk/id/local-authority/30UE,Corporate Management,1008,Chief Executives Office,Printing,40043,"Printing, Stationery & General",5026,32PP A4 + 4PP COVER NHS DOCUMENT x 100 as per estimate 00128675,18/12/2015,108053,400.00,Revenue,N B Colour Print Ltd,17917
Chorley Borough Council,http://statistics.data.gov.uk/id/local-authority/30UE,Corporate Management,1008,Chief Executives Office,Printing,40043,"Printing, Stationery & General",5026,52PP A4 + 4PP COVER DOCUMENT  x 100 as per estimate  00128666,18/12/2015,108054,548.00,Revenue,N B Colour Print Ltd,17917
Chorley Borough Council,http://statistics.data.gov.uk/id/local-authority/30UE,Corporate Management,1008,Streetscene & Leisure Contracts,Newsletter Production,40166,Miscellaneous Expenses,5034,"Chorley Council, 2PP A5 2016 REFUSE COLLECT CALENDAR (10 KINDS).  Quote Specification Estimate Ref: 127473",22/12/2015,108070,"3,282.00",Revenue,N B Colour Print Ltd,17917
Chorley Borough Council,http://statistics.data.gov.uk/id/local-authority/30UE,Central Support Services,1009,Health Environment & Neighbourhoods,Miscellaneous Expenses,40200,Miscellaneous Expenses,5034,"supply 35 yard skip as previous on Tuesday 3rd November, ADDRESS REDACTED, Chorley PR7 2JG",16/12/2015,108294,639.82,Revenue,Neales Waste Management,17583
Chorley Borough Council,http://statistics.data.gov.uk/id/local-authority/30UE,Business Support,1095,Streetscene & Leisure Contracts,Refuse Collection,20037,Cleaning and Domestic Supplies,5012,general yard 1,18/12/2015,108295,"2,748.07",Revenue,Neales Waste Management,17583
Chorley Borough Council,http://statistics.data.gov.uk/id/local-authority/30UE,Service Management & Support,1009,Streetscene & Leisure Contracts,Refuse Collection,20037,Cleaning and Domestic Supplies,5012,Exchange of street cleaning waste skip 20 yard skip and 35yard skip  at price quoted removed from Bengal St depot Please,18/12/2015,108308,"1,391.04",Revenue,Neales Waste Management,17583
Chorley Borough Council,http://statistics.data.gov.uk/id/local-authority/30UE,Service Management & Support,1009,Streetscene & Leisure Contracts,Refuse Collection,20037,Cleaning and Domestic Supplies,5012,Exchange of green waste 30 yard skip at price quoted removed from Bengal St Please order from 24/04/2015 to 31/03/2016,18/12/2015,108308,70.00,Revenue,Neales Waste Management,17583
Chorley Borough Council,http://statistics.data.gov.uk/id/local-authority/30UE,Service Management & Support,1009,Streetscene & Leisure Contracts,Refuse Collection,20037,Cleaning and Domestic Supplies,5012,Tonnage of green waste 35yard skip at price quoted removed from Bengal St Please order from 24/04/2015 to 31/03/2016,18/12/2015,108308,"1,927.52",Revenue,Neales Waste Management,17583
Chorley Borough Council,http://statistics.data.gov.uk/id/local-authority/30UE,Business Support,1095,Streetscene & Leisure Contracts,Refuse Collection,20037,Cleaning and Domestic Supplies,5012,Disposal costs for waste from the Compactor skip Market Walk yard 1. Price per tonne.,18/12/2015,108372,270.00,Revenue,Neales Waste Management,17583
Chorley Borough Council,http://statistics.data.gov.uk/id/local-authority/30UE,Business Support,1095,Streetscene & Leisure Contracts,Refuse Collection,20037,Cleaning and Domestic Supplies,5012,Skip exchanges for General waste FEL Market Walk yards 2 and 3. 8 cubic Yard FEL.,18/12/2015,108373,690.00,Revenue,Neales Waste Management,17583
Chorley Borough Council,http://statistics.data.gov.uk/id/local-authority/30UE,Service Management & Support,1009,Streetscene & Leisure Contracts,Vehicle Maintenance,30045,Direct Transport Costs,5016,Supply 3 x belly brushes for Johnston VT651 green type to be delivered as soon as possible,22/12/2015,108607,168.21,Revenue,Northern Municipal Spares Ltd,17752
Chorley Borough Council,http://statistics.data.gov.uk/id/local-authority/30UE,Service Management & Support,1009,Streetscene & Leisure Contracts,Vehicle Maintenance,30045,Direct Transport Costs,5016,Supply 6 x polywire brushes for Schmidt Swingo to be delivered as soon as possible,22/12/2015,108607,189.63,Revenue,Northern Municipal Spares Ltd,17752
Chorley Borough Council,http://statistics.data.gov.uk/id/local-authority/30UE,Service Management & Support,1009,Streetscene & Leisure Contracts,Vehicle Maintenance,30045,Direct Transport Costs,5016,Supply 6 x poly sweeping brushes for Schmidt Swingo to be delivered as soon as possible,22/12/2015,108607,128.61,Revenue,Northern Municipal Spares Ltd,17752
Chorley Borough Council,http://statistics.data.gov.uk/id/local-authority/30UE,Service Management & Support,1009,Streetscene & Leisure Contracts,Hire Of Transport,30028,Contrct Hire & Operating Lease,5018,Hire of Ford Transit crewcab tipper NK13YPT 30/04/2015 - 31/03/2016,16/12/2015,108049,262.86,Revenue,Northgate Vehicle Hire (NW) Ltd,17360
Chorley Borough Council,http://statistics.data.gov.uk/id/local-authority/30UE,Service Management & Support,1009,Streetscene & Leisure Contracts,Hire Of Transport,30028,Contrct Hire & Operating Lease,5018,Hire of Ford Transit crewcab tipper NL12OFG  30/04/2015 - 31/03/2016,16/12/2015,108049,262.86,Revenue,Northgate Vehicle Hire (NW) Ltd,17360
Chorley Borough Council,http://statistics.data.gov.uk/id/local-authority/30UE,Service Management & Support,1009,Streetscene & Leisure Contracts,Hire Of Transport,30028,Contrct Hire & Operating Lease,5018,Hire of Ford Transit crewcab tipper NL12ONR 30/04/2015 - 31/03/2016,16/12/2015,108049,262.86,Revenue,Northgate Vehicle Hire (NW) Ltd,17360
Chorley Borough Council,http://statistics.data.gov.uk/id/local-authority/30UE,Service Management & Support,1009,Streetscene & Leisure Contracts,Hire Of Transport,30028,Contrct Hire & Operating Lease,5018,Hire of Ford Transit tipper ND63 YEG 01/11/15 - 17/11/15,16/12/2015,108049,210.29,Revenue,Northgate Vehicle Hire (NW) Ltd,17360
Chorley Borough Council,http://statistics.data.gov.uk/id/local-authority/30UE,Service Management & Support,1009,Streetscene & Leisure Contracts,Hire Of Transport,30028,Contrct Hire & Operating Lease,5018,Hire of Ford Transit tipper WV65 UBD 01/11/15 - 17/11/15,16/12/2015,108049,210.29,Revenue,Northgate Vehicle Hire (NW) Ltd,17360
Chorley Borough Council,http://statistics.data.gov.uk/id/local-authority/30UE,Service Management & Support,1009,Streetscene & Leisure Contracts,Hire Of Transport,30028,Contrct Hire & Operating Lease,5018,Hire of Ford Transit tipper WU65 KZZ 01/11/15 - 17/11/15,16/12/2015,108049,210.29,Revenue,Northgate Vehicle Hire (NW) Ltd,17360
Chorley Borough Council,http://statistics.data.gov.uk/id/local-authority/30UE,Service Management & Support,1009,Streetscene & Leisure Contracts,Hire Of Transport,30028,Contrct Hire & Operating Lease,5018,Hire of Ford Transit tipper WN65 MHO 01/11/15 - 17/11/15,16/12/2015,108049,210.26,Revenue,Northgate Vehicle Hire (NW) Ltd,17360
Chorley Borough Council,http://statistics.data.gov.uk/id/local-authority/30UE,Service Management & Support,1009,Streetscene & Leisure Contracts,Hire Of Transport,30028,Contrct Hire & Operating Lease,5018,WN65 MWW & FE65 BRF,16/12/2015,108049,210.28,Revenue,Northgate Vehicle Hire (NW) Ltd,17360
Chorley Borough Council,http://statistics.data.gov.uk/id/local-authority/30UE,Democratic Represent and  Mgnt,1007,Streetscene & Leisure Contracts,Processional Routes,40177,Miscellaneous Expenses,5034,Hire of large black/dark coloured car as per conversation at price quoted for 3 days from 06/11/2015 collect 09/11/2015,16/12/2015,108049,129.47,Revenue,Northgate Vehicle Hire (NW) Ltd,17360
Chorley Borough Council,http://statistics.data.gov.uk/id/local-authority/30UE,Service Management & Support,1009,Streetscene & Leisure Contracts,Hire Of Transport,30028,Contrct Hire & Operating Lease,5018,Hire of Ford Transit crewcab Reg NK13YPT,16/12/2015,108049,230.00,Revenue,Northgate Vehicle Hire (NW) Ltd,17360
Chorley Borough Council,http://statistics.data.gov.uk/id/local-authority/30UE,Service Management & Support,1009,Streetscene & Leisure Contracts,Hire Of Transport,30028,Contrct Hire & Operating Lease,5018,Hire of Ford Transit Crewcab Reg No NL12ONR,16/12/2015,108049,230.00,Revenue,Northgate Vehicle Hire (NW) Ltd,17360
Chorley Borough Council,http://statistics.data.gov.uk/id/local-authority/30UE,Service Management & Support,1009,Streetscene & Leisure Contracts,Hire Of Transport,30028,Contrct Hire & Operating Lease,5018,Hire of Ford Transit Crewcab Reg No NL12OFG,16/12/2015,108049,230.00,Revenue,Northgate Vehicle Hire (NW) Ltd,17360
Chorley Borough Council,http://statistics.data.gov.uk/id/local-authority/30UE,Service Management & Support,1009,Streetscene & Leisure Contracts,Hire Of Transport,30028,Contrct Hire & Operating Lease,5018,Hire of Ford Transit tipper Reg No ND63YEG,16/12/2015,108049,184.00,Revenue,Northgate Vehicle Hire (NW) Ltd,17360
Chorley Borough Council,http://statistics.data.gov.uk/id/local-authority/30UE,Service Management & Support,1009,Streetscene & Leisure Contracts,Hire Of Transport,30028,Contrct Hire & Operating Lease,5018,Hire of Ford Transit tipper Reg No WV65UBD,16/12/2015,108049,184.00,Revenue,Northgate Vehicle Hire (NW) Ltd,17360
Chorley Borough Council,http://statistics.data.gov.uk/id/local-authority/30UE,Service Management & Support,1009,Streetscene & Leisure Contracts,Hire Of Transport,30028,Contrct Hire & Operating Lease,5018,Hire of Ford Transit tipper Reg No WU65KZZ,16/12/2015,108049,184.00,Revenue,Northgate Vehicle Hire (NW) Ltd,17360
Chorley Borough Council,http://statistics.data.gov.uk/id/local-authority/30UE,Service Management & Support,1009,Streetscene & Leisure Contracts,Hire Of Transport,30028,Contrct Hire & Operating Lease,5018,Hire of Ford Transit tipper Reg No WN65MHO,16/12/2015,108049,184.00,Revenue,Northgate Vehicle Hire (NW) Ltd,17360
Chorley Borough Council,http://statistics.data.gov.uk/id/local-authority/30UE,Service Management & Support,1009,Streetscene & Leisure Contracts,Hire Of Transport,30028,Contrct Hire & Operating Lease,5018,Hire of Ford Transit tipper Reg No WN65MWW,16/12/2015,108049,184.00,Revenue,Northgate Vehicle Hire (NW) Ltd,17360
Chorley Borough Council,http://statistics.data.gov.uk/id/local-authority/30UE,Service Management & Support,1009,Streetscene & Leisure Contracts,Hire Of Transport,30028,Contrct Hire & Operating Lease,5018,Hire of Ford Transit tipper Reg No FE65BRF,16/12/2015,108049,184.00,Revenue,Northgate Vehicle Hire (NW) Ltd,17360
Chorley Borough Council,http://statistics.data.gov.uk/id/local-authority/30UE,Service Management & Support,1009,Streetscene & Leisure Contracts,Hire Of Transport,30028,Contrct Hire & Operating Lease,5018,nk13 ynv upto 17/1115,16/12/2015,108049,118.32,Revenue,Northgate Vehicle Hire (NW) Ltd,17360
Chorley Borough Council,http://statistics.data.gov.uk/id/local-authority/30UE,Service Management & Support,1009,Streetscene & Leisure Contracts,Hire Of Transport,30028,Contrct Hire & Operating Lease,5018,Hire of Ford Transit crewcab tipper NK13YPT 30/04/2015 - 31/03/2016,16/12/2015,108072,509.29,Revenue,Northgate Vehicle Hire (NW) Ltd,17360
Chorley Borough Council,http://statistics.data.gov.uk/id/local-authority/30UE,Service Management & Support,1009,Streetscene & Leisure Contracts,Hire Of Transport,30028,Contrct Hire & Operating Lease,5018,Hire of Ford Transit crewcab tipper NL12OFG  30/04/2015 - 31/03/2016,16/12/2015,108072,509.29,Revenue,Northgate Vehicle Hire (NW) Ltd,17360
Chorley Borough Council,http://statistics.data.gov.uk/id/local-authority/30UE,Service Management & Support,1009,Streetscene & Leisure Contracts,Hire Of Transport,30028,Contrct Hire & Operating Lease,5018,Hire of Ford Transit crewcab tipper NL12ONR 30/04/2015 - 31/03/2016,16/12/2015,108072,509.29,Revenue,Northgate Vehicle Hire (NW) Ltd,17360
Chorley Borough Council,http://statistics.data.gov.uk/id/local-authority/30UE,Service Management & Support,1009,Streetscene & Leisure Contracts,Hire Of Transport,30028,Contrct Hire & Operating Lease,5018,Hire of Ford Transit tipper NK13YNV 30/04/2015 - 31/03/2016,16/12/2015,108072,407.43,Revenue,Northgate Vehicle Hire (NW) Ltd,17360
Chorley Borough Council,http://statistics.data.gov.uk/id/local-authority/30UE,Service Management & Support,1009,Streetscene & Leisure Contracts,Hire Of Transport,30028,Contrct Hire & Operating Lease,5018,NA12 JFX,16/12/2015,108072,65.71,Revenue,Northgate Vehicle Hire (NW) Ltd,17360
Chorley Borough Council,http://statistics.data.gov.uk/id/local-authority/30UE,Service Management & Support,1009,Streetscene & Leisure Contracts,Hire Of Transport,30028,Contrct Hire & Operating Lease,5018,ND63YEG,16/12/2015,108072,407.43,Revenue,Northgate Vehicle Hire (NW) Ltd,17360
Chorley Borough Council,http://statistics.data.gov.uk/id/local-authority/30UE,Service Management & Support,1009,Streetscene & Leisure Contracts,Hire Of Transport,30028,Contrct Hire & Operating Lease,5018,WV65UBD,16/12/2015,108072,407.43,Revenue,Northgate Vehicle Hire (NW) Ltd,17360
Chorley Borough Council,http://statistics.data.gov.uk/id/local-authority/30UE,Service Management & Support,1009,Streetscene & Leisure Contracts,Hire Of Transport,30028,Contrct Hire & Operating Lease,5018,WU65KZZ,16/12/2015,108072,407.43,Revenue,Northgate Vehicle Hire (NW) Ltd,17360
Chorley Borough Council,http://statistics.data.gov.uk/id/local-authority/30UE,Service Management & Support,1009,Streetscene & Leisure Contracts,Hire Of Transport,30028,Contrct Hire & Operating Lease,5018,WN65MHO,16/12/2015,108072,354.86,Revenue,Northgate Vehicle Hire (NW) Ltd,17360
Chorley Borough Council,http://statistics.data.gov.uk/id/local-authority/30UE,Democratic Represent and  Mgnt,1007,Governance,Electricity,20013,Energy Costs,5006,Tatton recreation,09/12/2015,108067,63.24,Revenue,Npower Commercial Gas,16814
Chorley Borough Council,http://statistics.data.gov.uk/id/local-authority/30UE,Democratic Represent and  Mgnt,1007,Governance,Electricity,20013,Energy Costs,5006,Astley Hall farm,09/12/2015,108067,214.81,Revenue,Npower Commercial Gas,16814
Chorley Borough Council,http://statistics.data.gov.uk/id/local-authority/30UE,Corporate Management,1008,Governance,Electricity,20013,Energy Costs,5006,Cemetery Chapel,09/12/2015,108067,7.11,Revenue,Npower Commercial Gas,16814
Chorley Borough Council,http://statistics.data.gov.uk/id/local-authority/30UE,Democratic Represent and  Mgnt,1007,Governance,Electricity,20013,Energy Costs,5006,King George,09/12/2015,108067,47.16,Revenue,Npower Commercial Gas,16814
Chorley Borough Council,http://statistics.data.gov.uk/id/local-authority/30UE,Democratic Represent and  Mgnt,1007,Governance,Electricity,20013,Energy Costs,5006,King George,09/12/2015,108067,47.26,Revenue,Npower Commercial Gas,16814
Chorley Borough Council,http://statistics.data.gov.uk/id/local-authority/30UE,Unapportionable Central OHeads,1009,Governance,Electricity,20013,Energy Costs,5006,Civic Offices,09/12/2015,108067,"3,145.03",Revenue,Npower Commercial Gas,16814
Chorley Borough Council,http://statistics.data.gov.uk/id/local-authority/30UE,Unapportionable Central OHeads,1009,Governance,Electricity,20013,Energy Costs,5006,Bengal Street,09/12/2015,108067,765.27,Revenue,Npower Commercial Gas,16814
Chorley Borough Council,http://statistics.data.gov.uk/id/local-authority/30UE,Unapportionable Central OHeads,1009,Governance,Electricity,20013,Energy Costs,5006,Town Hall,09/12/2015,108067,"2,086.45",Revenue,Npower Commercial Gas,16814
Chorley Borough Council,http://statistics.data.gov.uk/id/local-authority/30UE,Homelessness,1075,Governance,Electricity,20013,Energy Costs,5006,Cotswold House,09/12/2015,108067,227.09,Revenue,Npower Commercial Gas,16814
Chorley Borough Council,http://statistics.data.gov.uk/id/local-authority/30UE,Business Support,1095,Governance,Electricity,20013,Energy Costs,5006,102a Market Street,09/12/2015,108067,16.56,Revenue,Npower Commercial Gas,16814
Chorley Borough Council,http://statistics.data.gov.uk/id/local-authority/30UE,Parking Services,1066,Governance,Electricity,20013,Energy Costs,5006,car park,18/12/2015,108390,1.00,Revenue,Npower Commercial Gas,16814
Chorley Borough Council,http://statistics.data.gov.uk/id/local-authority/30UE,Parking Services,1066,Governance,Electricity,20013,Energy Costs,5006,pay and display,18/12/2015,108390,99.94,Revenue,Npower Commercial Gas,16814
Chorley Borough Council,http://statistics.data.gov.uk/id/local-authority/30UE,Culture & Heritage,1036,Governance,Electricity,20013,Energy Costs,5006,cctv cameras,18/12/2015,108390,247.26,Revenue,Npower Commercial Gas,16814
Chorley Borough Council,http://statistics.data.gov.uk/id/local-authority/30UE,Democratic Represent and  Mgnt,1007,Governance,Electricity,20013,Energy Costs,5006,Tatton recreation,22/12/2015,108527,31.18,Revenue,Npower Commercial Gas,16814
Chorley Borough Council,http://statistics.data.gov.uk/id/local-authority/30UE,Democratic Represent and  Mgnt,1007,Governance,Electricity,20013,Energy Costs,5006,Astley Hall,22/12/2015,108527,282.47,Revenue,Npower Commercial Gas,16814
Chorley Borough Council,http://statistics.data.gov.uk/id/local-authority/30UE,Community Development,1097,Governance,Electricity,20013,Energy Costs,5006,35-39 Market Street,22/12/2015,108527,114.80,Revenue,Npower Commercial Gas,16814
Chorley Borough Council,http://statistics.data.gov.uk/id/local-authority/30UE,Democratic Represent and  Mgnt,1007,Governance,Electricity,20013,Energy Costs,5006,Coach house,22/12/2015,108527,"2,382.74",Revenue,Npower Commercial Gas,16814
Chorley Borough Council,http://statistics.data.gov.uk/id/local-authority/30UE,Democratic Represent and  Mgnt,1007,Governance,Electricity,20013,Energy Costs,5006,Astley Park changing rooms,22/12/2015,108527,842.57,Revenue,Npower Commercial Gas,16814
Chorley Borough Council,http://statistics.data.gov.uk/id/local-authority/30UE,Economic Development,1096,Governance,Electricity,20013,Energy Costs,5006,Market compacter,22/12/2015,108527,275.27,Revenue,Npower Commercial Gas,16814
Chorley Borough Council,http://statistics.data.gov.uk/id/local-authority/30UE,Unapportionable Central OHeads,1009,Governance,Electricity,20013,Energy Costs,5006,Civic offices,22/12/2015,108527,"3,130.34",Revenue,Npower Commercial Gas,16814
Chorley Borough Council,http://statistics.data.gov.uk/id/local-authority/30UE,Unapportionable Central OHeads,1009,Governance,Electricity,20013,Energy Costs,5006,Bengal street,22/12/2015,108527,898.96,Revenue,Npower Commercial Gas,16814
Chorley Borough Council,http://statistics.data.gov.uk/id/local-authority/30UE,Unapportionable Central OHeads,1009,Governance,Electricity,20013,Energy Costs,5006,Town Hall,22/12/2015,108527,"2,127.42",Revenue,Npower Commercial Gas,16814
Chorley Borough Council,http://statistics.data.gov.uk/id/local-authority/30UE,Homelessness,1075,Governance,Electricity,20013,Energy Costs,5006,Cotswold House,22/12/2015,108527,361.10,Revenue,Npower Commercial Gas,16814
Chorley Borough Council,http://statistics.data.gov.uk/id/local-authority/30UE,Democratic Represent and  Mgnt,1007,Governance,Electricity,20013,Energy Costs,5006,Tunley Home,22/12/2015,108527,68.23,Revenue,Npower Commercial Gas,16814
Chorley Borough Council,http://statistics.data.gov.uk/id/local-authority/30UE,Parking Services,1066,Streetscene & Leisure Contracts,External Contractors,50008,Private Contractors,5042,"�Provision of off street car park enforcement, cash collection, cash counting facilities and third party bulk cash collections�",16/12/2015,108258,"3,729.68",Revenue,NSL Limited,67253
Chorley Borough Council,http://statistics.data.gov.uk/id/local-authority/30UE,Unapportionable Central OHeads,1009,HR & Org. Development,Corp Training Organisational Development,17006,Indirect Employee Expenses,5002,Staff Survey 2015,09/12/2015,107337,"1,750.00",Revenue,NWA Social & Market Research Limited,20931
Chorley Borough Council,http://statistics.data.gov.uk/id/local-authority/30UE,Unapportionable Central OHeads,1009,HR & Org. Development,Corp Training Organisational Development,17006,Indirect Employee Expenses,5002,Staff Survey Costs - In addition to PRD043102 to cover invoice NWA3582,09/12/2015,107337,"1,445.00",Revenue,NWA Social & Market Research Limited,20931
Chorley Borough Council,http://statistics.data.gov.uk/id/local-authority/30UE,Service Management & Support,1009,Streetscene & Leisure Contracts,External Contractor,40198,Miscellaneous Expenses,5034,Hire of TL90 platform lights as per your price,18/12/2015,107982,"1,056.00",Revenue,One Stop Hire,18086
Chorley Borough Council,http://statistics.data.gov.uk/id/local-authority/30UE,Service Management & Support,1009,Streetscene & Leisure Contracts,External Contractor,40198,Miscellaneous Expenses,5034,lighting tower,18/12/2015,107982,907.50,Revenue,One Stop Hire,18086
Chorley Borough Council,http://statistics.data.gov.uk/id/local-authority/30UE,Business Support,1095,Governance,Electricity,20013,Energy Costs,5006,market walk,11/12/2015,108105,"1,180.76",Revenue,Opus Energy Ltd,65093
Chorley Borough Council,http://statistics.data.gov.uk/id/local-authority/30UE,Democratic Represent and  Mgnt,1007,Streetscene & Leisure Contracts,Exhibitions & Special Events,40158,Miscellaneous Expenses,5034,Contract to show the Gruffalo film on Saturday 19th September as agreed.,18/12/2015,108431,300.00,Revenue,Orange Eyes Limited,72021
Chorley Borough Council,http://statistics.data.gov.uk/id/local-authority/30UE,Capital,Capital,Governance,Main Contractor,3007,Capital Expenditure,Capital,Alterations for change of use at 24-26 Gillibrand Street from offices to Doctor`s surgery.,22/12/2015,108178,"54,600.00",Capital,P J Services (Bolton) Ltd,62962
Chorley Borough Council,http://statistics.data.gov.uk/id/local-authority/30UE,Service Management & Support,1009,Streetscene & Leisure Contracts,Supplies-Grounds Maintenance,40025,"Equipment, Furniture & Materia",5023,Various indoor plants. Remembrance Sunday,02/12/2015,107845,384.15,Revenue,Peter H Smith Limited,17088
Chorley Borough Council,http://statistics.data.gov.uk/id/local-authority/30UE,Central Support Services,1009,Health Environment & Neighbourhoods,External Contractor,40198,Miscellaneous Expenses,5034,Pest control services from April 1st 2015 up to and inclusive March 31st 2016,02/12/2015,107841,323.83,Revenue,Peter L Johnson,16727
Chorley Borough Council,http://statistics.data.gov.uk/id/local-authority/30UE,Central Support Services,1009,Health Environment & Neighbourhoods,External Contractor,40198,Miscellaneous Expenses,5034,Pest control services from April 1st 2015 up to and inclusive March 31st 2016,02/12/2015,107942,323.83,Revenue,Peter L Johnson,16727
Chorley Borough Council,http://statistics.data.gov.uk/id/local-authority/30UE,Central Support Services,1009,Health Environment & Neighbourhoods,External Contractor,40198,Miscellaneous Expenses,5034,Pest control services from April 1st 2015 up to and inclusive March 31st 2016,16/12/2015,108062,323.83,Revenue,Peter L Johnson,16727
Chorley Borough Council,http://statistics.data.gov.uk/id/local-authority/30UE,Central Support Services,1009,Health Environment & Neighbourhoods,External Contractor,40198,Miscellaneous Expenses,5034,Pest control services from April 1st 2015 up to and inclusive March 31st 2016,10/12/2015,108073,323.83,Revenue,Peter L Johnson,16727
Chorley Borough Council,http://statistics.data.gov.uk/id/local-authority/30UE,Central Support Services,1009,Health Environment & Neighbourhoods,External Contractor,40198,Miscellaneous Expenses,5034,Pest control services from April 1st 2015 up to and inclusive March 31st 2016,16/12/2015,108074,323.83,Revenue,Peter L Johnson,16727
Chorley Borough Council,http://statistics.data.gov.uk/id/local-authority/30UE,Central Support Services,1009,Health Environment & Neighbourhoods,External Contractor,40198,Miscellaneous Expenses,5034,Pest control services from April 1st 2015 up to and inclusive March 31st 2016,09/12/2015,108075,323.83,Revenue,Peter L Johnson,16727
Chorley Borough Council,http://statistics.data.gov.uk/id/local-authority/30UE,Central Support Services,1009,Health Environment & Neighbourhoods,External Contractor,40198,Miscellaneous Expenses,5034,Pest control services from April 1st 2015 up to and inclusive March 31st 2016,09/12/2015,108076,323.83,Revenue,Peter L Johnson,16727
Chorley Borough Council,http://statistics.data.gov.uk/id/local-authority/30UE,Service Management & Support,1009,Streetscene & Leisure Contracts,Diesel/Derv,30007,Direct Transport Costs,5016,Supply 3000 litres of road diesel to be delivered to Bengal St depot at price quoted,18/12/2015,107989,"2,844.00",Revenue,Pilkington Oils,18075
Chorley Borough Council,http://statistics.data.gov.uk/id/local-authority/30UE,Central Support Services,1009,Health Environment & Neighbourhoods,Veterinary Fees Etc,40074,Services,5027,Vaccination and wormer account,02/12/2015,107764,290.27,Revenue,Pinewood Veterinary Practice,16395
Chorley Borough Council,http://statistics.data.gov.uk/id/local-authority/30UE,Unapportionable Central OHeads,1009,Governance,Furniture - Purchase,40012,"Equipment, Furniture & Materia",5023,1 x lockable 2 door credenza including shelf in Lugano Oak (1000mm x 500mm x 750mm) - 390. Delivery to Town Hall,16/12/2015,107897,440.00,Revenue,Planscape Business Interiors Ltd,69451
Chorley Borough Council,http://statistics.data.gov.uk/id/local-authority/30UE,Central Support Services,1009,Health Environment & Neighbourhoods,Promotional Expenses,40159,Miscellaneous Expenses,5034,Supply of range of marketing materials using supplied artwork.  Contact Phil Collins/Andy Banks,16/12/2015,108001,"1,195.26",Revenue,Poppy Signs Ltd,21898
Chorley Borough Council,http://statistics.data.gov.uk/id/local-authority/30UE,Parking Services,1066,Governance,Publicity - Advertising,40157,Miscellaneous Expenses,5034,"Please supply Option B / 2 x1, 60ft a 5ft hoarding panels, Printed and installed to the new Cleveland Street Car Park",22/12/2015,108424,280.00,Revenue,Poppy Signs Ltd,21898
Chorley Borough Council,http://statistics.data.gov.uk/id/local-authority/30UE,Parking Services,1066,Governance,Publicity - Advertising,40157,Miscellaneous Expenses,5034,"Please supply Option B / 2 x1, 60ft a 5ft hoarding panels, Printed and installed to the new Cleveland Street Car Park",22/12/2015,108545,766.64,Revenue,Poppy Signs Ltd,21898
Chorley Borough Council,http://statistics.data.gov.uk/id/local-authority/30UE,Unapportionable Central OHeads,1009,Chief Executives Office,Stationery,40050,"Printing, Stationery & General",5026,"Evolution Everyday A4 80gsm, Box 2500",04/12/2015,107831,454.00,Revenue,Premier Paper Group,54451
Chorley Borough Council,http://statistics.data.gov.uk/id/local-authority/30UE,Unapportionable Central OHeads,1009,Chief Executives Office,Photocopier Consumables,40049,"Printing, Stationery & General",5026,Evolution Everyday A3 80gsm box 2500,09/12/2015,108040,46.15,Revenue,Premier Paper Group,54451
Chorley Borough Council,http://statistics.data.gov.uk/id/local-authority/30UE,Unapportionable Central OHeads,1009,Chief Executives Office,Photocopier Consumables,40049,"Printing, Stationery & General",5026,"Evolution Everyday A4 80gsm, Box 2500",09/12/2015,108040,454.00,Revenue,Premier Paper Group,54451
Chorley Borough Council,http://statistics.data.gov.uk/id/local-authority/30UE,Corporate Management,1008,Policy & Performance,Publicity - Advertising,40157,Miscellaneous Expenses,5034,providing billboard and cinema advertising for Chorley�s Christmas attractions,18/12/2015,107464,599.95,Revenue,Primesight Ltd,72385
Chorley Borough Council,http://statistics.data.gov.uk/id/local-authority/30UE,Unapportionable Central OHeads,1009,Policy & Performance,Publicity - Advertising,40157,Miscellaneous Expenses,5034,providing billboard and cinema advertising for Chorley�s Christmas attractions,18/12/2015,107464,599.95,Revenue,Primesight Ltd,72385
Chorley Borough Council,http://statistics.data.gov.uk/id/local-authority/30UE,Elections,1012,Governance,Postages,40082,Communication and Computing,5028,Run 4 ITR mailing,22/12/2015,108568,416.50,Revenue,Print Image Facilities LLP,57870
Chorley Borough Council,http://statistics.data.gov.uk/id/local-authority/30UE,Elections,1012,Governance,Printing,40043,"Printing, Stationery & General",5026,A6 calling cards,16/12/2015,108330,448.00,Revenue,Print Image Network,21171
Chorley Borough Council,http://statistics.data.gov.uk/id/local-authority/30UE,Homelessness,1075,Housing,Grants To Other Organisations,40127,Grants and Subscriptions,5031,Delivery of Shared Housing Pilot Q2 Year 2,02/12/2015,107510,"3,646.75",Revenue,Progress Housing Group,64340
Chorley Borough Council,http://statistics.data.gov.uk/id/local-authority/30UE,Homelessness,1075,Housing,Grants To Other Organisations,40127,Grants and Subscriptions,5031,"Delivery of Shared Housing Pilot in   Chorley, South Ribble, Preston and West  Lancs Q2 Year 2 Replace PRD041812 ",04/12/2015,108035,"3,646.75",Revenue,Progress Housing Group,64340
Chorley Borough Council,http://statistics.data.gov.uk/id/local-authority/30UE,Unapportionable Central OHeads,1009,Policy & Performance,Exhibitions & Special Events,40158,Miscellaneous Expenses,5034,Security for the Chorley Live event,18/12/2015,108413,920.00,Revenue,Protege Security Ltd,62271
Chorley Borough Council,http://statistics.data.gov.uk/id/local-authority/30UE,Unapportionable Central OHeads,1009,Policy & Performance,Exhibitions & Special Events,40158,Miscellaneous Expenses,5034,Six appearances of Father Christmas at Astley Hall,09/12/2015,108150,360.00,Revenue,Robert Mawbey,57306
Chorley Borough Council,http://statistics.data.gov.uk/id/local-authority/30UE,Elections,1012,Governance,Postages,40082,Communication and Computing,5028,Business reply mail from April 2015 - March 2016 for RRHA KZCB CAXA,18/12/2015,108400,449.50,Revenue,Royal Mail Group Plc,17522
Chorley Borough Council,http://statistics.data.gov.uk/id/local-authority/30UE,Elections,1012,Governance,Postages,40082,Communication and Computing,5028,,18/12/2015,108499,498.85,Revenue,Royal Mail Group Plc,17522
Chorley Borough Council,http://statistics.data.gov.uk/id/local-authority/30UE,Elections,1012,Governance,Postages,40082,Communication and Computing,5028,postal vote,18/12/2015,108530,897.44,Revenue,Royal Mail Group Plc,17522
Chorley Borough Council,http://statistics.data.gov.uk/id/local-authority/30UE,Precepts and Collection Fund,Precept,"Customer, ICT & Transactional",Bailiff Costs,2018,Precepts & Collection Fund,Precept,,09/12/2015,108088,838.00,Revenue,Rundles,17803
Chorley Borough Council,http://statistics.data.gov.uk/id/local-authority/30UE,Precepts and Collection Fund,Precept,"Customer, ICT & Transactional",Bailiff Costs,2018,Precepts & Collection Fund,Precept,,09/12/2015,108088,0.00,Revenue,Rundles,17803
Chorley Borough Council,http://statistics.data.gov.uk/id/local-authority/30UE,Unapportionable Central OHeads,1009,"Customer, ICT & Transactional",Bailiffs Commission,40153,Miscellaneous Expenses,5034,baliff,18/12/2015,108444,864.00,Revenue,Rundles,17803
Chorley Borough Council,http://statistics.data.gov.uk/id/local-authority/30UE,Homelessness,1075,Housing,External Contractor,40198,Miscellaneous Expenses,5034,"Concierge Service at Cotswold Supported Housing, Cotswold Road, Chorley, Lancashire, PR7 3HW. for the period Feb 2015",16/12/2015,107954,"2,101.48",Revenue,Sector Security Services,19269
Chorley Borough Council,http://statistics.data.gov.uk/id/local-authority/30UE,Homelessness,1075,Housing,External Contractor,40198,Miscellaneous Expenses,5034,"Concierge Service at Cotswold Supported Housing, Cotswold Road, Chorley, Lancashire, PR7 3HW. for the period Feb 2015",16/12/2015,108260,"2,101.48",Revenue,Sector Security Services,19269
Chorley Borough Council,http://statistics.data.gov.uk/id/local-authority/30UE,Business Support,1095,Economic Development,Security Service,40062,Services,5027,To provide Security Services to MWSC November 2015,04/12/2015,107945,"5,616.02",Revenue,Securitas Security Services (UK) Ltd,70693
Chorley Borough Council,http://statistics.data.gov.uk/id/local-authority/30UE,Service Management & Support,1009,Streetscene & Leisure Contracts,Supplies-Grounds Maintenance,40025,"Equipment, Furniture & Materia",5023,Work carried out on Springs Rd/ Laburnam Rd path,02/12/2015,107970,"1,300.00",Revenue,Shiloh Surfacing,61457
Chorley Borough Council,http://statistics.data.gov.uk/id/local-authority/30UE,Service Management & Support,1009,Streetscene & Leisure Contracts,Protective Clothing,40040,"Clothing, Uniforms and Laundry",5025,Yellow Hi Vis 3/4 length jacket.  c/w Chorley Council Logo screen printed back & front. Product Code = CSR30  Size = Med,16/12/2015,108395,73.25,Revenue,Smart Image Workwear,21064
Chorley Borough Council,http://statistics.data.gov.uk/id/local-authority/30UE,Service Management & Support,1009,Streetscene & Leisure Contracts,Protective Clothing,40040,"Clothing, Uniforms and Laundry",5025,Yellow Hi Vis 3/4 length jacket.  c/w Chorley Council Logo screen printed back & front. Product Code = CSR30 Size = Large,16/12/2015,108395,73.25,Revenue,Smart Image Workwear,21064
Chorley Borough Council,http://statistics.data.gov.uk/id/local-authority/30UE,Service Management & Support,1009,Streetscene & Leisure Contracts,Protective Clothing,40040,"Clothing, Uniforms and Laundry",5025,High Vis Yellow waterproof bomber jacket c/w Chorley Council Logo screen printed back and front. Product Code = CSR31,16/12/2015,108395,72.25,Revenue,Smart Image Workwear,21064
Chorley Borough Council,http://statistics.data.gov.uk/id/local-authority/30UE,Service Management & Support,1009,Streetscene & Leisure Contracts,Protective Clothing,40040,"Clothing, Uniforms and Laundry",5025,High Vis Yellow waterproof bomber jacket c/w Chorley Council Logo screen printed back and front.  Product Code = CSR31,16/12/2015,108395,43.35,Revenue,Smart Image Workwear,21064
Chorley Borough Council,http://statistics.data.gov.uk/id/local-authority/30UE,Service Management & Support,1009,Streetscene & Leisure Contracts,Protective Clothing,40040,"Clothing, Uniforms and Laundry",5025,High Vis Yellow waterproof bomber jacket c/w Chorley Council Logo screen printed back and front.  Product Code = CSR31,16/12/2015,108395,43.35,Revenue,Smart Image Workwear,21064
Chorley Borough Council,http://statistics.data.gov.uk/id/local-authority/30UE,Economic Development,1096,Governance,Protective Clothing,40040,"Clothing, Uniforms and Laundry",5025,"Please supply: x18 ORN Hawk Cargo pants, CSR38 in the following sizes: 2 x 30``4 x 32``4 x 34``(2 Short & 2 Long)",18/12/2015,108547,232.20,Revenue,Smart Image Workwear,21064
Chorley Borough Council,http://statistics.data.gov.uk/id/local-authority/30UE,Economic Development,1096,Governance,Protective Clothing,40040,"Clothing, Uniforms and Laundry",5025,"x18 Uneek UC122 Polo Shirt, CSR34 in the following sizes: x4 Medium x4 Large x4 Xtra Large x6 XX Large",18/12/2015,108547,108.00,Revenue,Smart Image Workwear,21064
Chorley Borough Council,http://statistics.data.gov.uk/id/local-authority/30UE,Economic Development,1096,Governance,Protective Clothing,40040,"Clothing, Uniforms and Laundry",5025,"x18 Uneek UC203 Crew Sweat, CSR36 in the following sizes: x4 Medium x4 Large x4 Xtra Large x4 XX Large",18/12/2015,108547,151.20,Revenue,Smart Image Workwear,21064
Chorley Borough Council,http://statistics.data.gov.uk/id/local-authority/30UE,Economic Development,1096,Governance,Protective Clothing,40040,"Clothing, Uniforms and Laundry",5025,x10 Uneek UC502 Hoody Sweat in the following sizes: x2 Medium x2 Large x2 Xtra Large x4 XX Large,18/12/2015,108547,108.00,Revenue,Smart Image Workwear,21064
Chorley Borough Council,http://statistics.data.gov.uk/id/local-authority/30UE,Central Support Services,1009,"Customer, ICT & Transactional",Computer Software-Purchase,40100,Communication and Computing,5028,BACKUP EXEC SERVER ED - part code 11482-M2954,16/12/2015,108248,245.14,Revenue,Softcat Ltd,69996
Chorley Borough Council,http://statistics.data.gov.uk/id/local-authority/30UE,Central Support Services,1009,"Customer, ICT & Transactional",Computer Software-Purchase,40100,Communication and Computing,5028,BACKUP EXEC AGENT FOR APPLICATIONS AND DATABASES - part code 12594-M2954,16/12/2015,108248,"1,225.70",Revenue,Softcat Ltd,69996
Chorley Borough Council,http://statistics.data.gov.uk/id/local-authority/30UE,Central Support Services,1009,"Customer, ICT & Transactional",Computer Software-Purchase,40100,Communication and Computing,5028,BACKUP EXEC AGENT FOR WINDOWS - part code 14209-M2954,16/12/2015,108248,146.13,Revenue,Softcat Ltd,69996
Chorley Borough Council,http://statistics.data.gov.uk/id/local-authority/30UE,Central Support Services,1009,Health Environment & Neighbourhoods,Miscellaneous Expenses,40200,Miscellaneous Expenses,5034,Provision of facilitator and support for Year 2 of time credits programme in Chorley,18/12/2015,108511,"18,521.93",Revenue,Spice Innovations Ltd,61318
Chorley Borough Council,http://statistics.data.gov.uk/id/local-authority/30UE,Democratic Represent and  Mgnt,1007,Governance,Grants To Other Organisations,40127,Grants and Subscriptions,5031,comm grant fund,22/12/2015,108600,250.00,Revenue,St Josephs Bowling Club (Anderton),73287
Chorley Borough Council,http://statistics.data.gov.uk/id/local-authority/30UE,Central Support Services,1009,"Customer, ICT & Transactional",Computer Equipment-Maintenance,40105,Communication and Computing,5028,"NetApp 3140 & 2020 c/w all disks including 24x7 4 hour fix, hardware replacement, software support/updates/patches",04/12/2015,107461,"2,311.23",Revenue,Starcom Technolgies Limited,20541
Chorley Borough Council,http://statistics.data.gov.uk/id/local-authority/30UE,Central Support Services,1009,"Customer, ICT & Transactional",Computer Equipment-Maintenance,40105,Communication and Computing,5028,1 x Cisco chassis with 7 B230 M2 blade servers including 24x7 4 hour fix including Hardware Replacement Software Support,04/12/2015,107461,824.55,Revenue,Starcom Technolgies Limited,20541
Chorley Borough Council,http://statistics.data.gov.uk/id/local-authority/30UE,Central Support Services,1009,"Customer, ICT & Transactional",Computer Equipment-Maintenance,40105,Communication and Computing,5028,"10 x Cisco switches including 24x7 4 hour fix, hardware replacement, software support/updates/patches (where applicable)",04/12/2015,107461,454.75,Revenue,Starcom Technolgies Limited,20541
Chorley Borough Council,http://statistics.data.gov.uk/id/local-authority/30UE,Capital,Capital,Housing,Grants,3002,Capital Expenditure,Capital,7 Far nook,02/12/2015,107672,"15,365.00",Capital,Stringfellow Bldg Cntrctrs Ltd,17893
Chorley Borough Council,http://statistics.data.gov.uk/id/local-authority/30UE,Unapportionable Central OHeads,1009,Governance,General Repairs - Reactive,20004,Repairs Maintenance & Alts,5005,Blanket reactive Aug-Dec 2015.,02/12/2015,108013,"2,975.00",Revenue,Stringfellow Bldg Cntrctrs Ltd,17893
Chorley Borough Council,http://statistics.data.gov.uk/id/local-authority/30UE,Unapportionable Central OHeads,1009,Governance,General Repairs - Reactive,20004,Repairs Maintenance & Alts,5005,Blanket reactive Aug-Dec 2015.,18/12/2015,108043,815.54,Revenue,Stringfellow Bldg Cntrctrs Ltd,17893
Chorley Borough Council,http://statistics.data.gov.uk/id/local-authority/30UE,Unapportionable Central OHeads,1009,Governance,General Repairs - Reactive,20004,Repairs Maintenance & Alts,5005,Blanket reactive Aug-Dec 2015.,18/12/2015,108181,325.21,Revenue,Stringfellow Bldg Cntrctrs Ltd,17893
Chorley Borough Council,http://statistics.data.gov.uk/id/local-authority/30UE,Unapportionable Central OHeads,1009,Governance,General Repairs - Reactive,20004,Repairs Maintenance & Alts,5005,Blanket reactive Aug-Dec 2015.,18/12/2015,108183,"1,066.23",Revenue,Stringfellow Bldg Cntrctrs Ltd,17893
Chorley Borough Council,http://statistics.data.gov.uk/id/local-authority/30UE,Unapportionable Central OHeads,1009,Governance,General Repairs - Reactive,20004,Repairs Maintenance & Alts,5005,Blanket reactive Aug-Dec 2015.,18/12/2015,108217,672.47,Revenue,Stringfellow Bldg Cntrctrs Ltd,17893
Chorley Borough Council,http://statistics.data.gov.uk/id/local-authority/30UE,Unapportionable Central OHeads,1009,Governance,General Repairs - Reactive,20004,Repairs Maintenance & Alts,5005,Blanket reactive Aug-Dec 2015.,18/12/2015,108253,308.75,Revenue,Stringfellow Bldg Cntrctrs Ltd,17893
Chorley Borough Council,http://statistics.data.gov.uk/id/local-authority/30UE,Unapportionable Central OHeads,1009,Governance,General Repairs - Reactive,20004,Repairs Maintenance & Alts,5005,Blanket reactive Aug-Dec 2015.,18/12/2015,108304,"2,748.50",Revenue,Stringfellow Bldg Cntrctrs Ltd,17893
Chorley Borough Council,http://statistics.data.gov.uk/id/local-authority/30UE,Business Support,1095,Governance,Asset Maintenance Fund,20012,Repairs Maintenance & Alts,5005,Improvement works at Unit 13 Chorley North Business Park.,18/12/2015,108351,"2,851.26",Revenue,Stringfellow Bldg Cntrctrs Ltd,17893
Chorley Borough Council,http://statistics.data.gov.uk/id/local-authority/30UE,Unapportionable Central OHeads,1009,Governance,General Repairs - Reactive,20004,Repairs Maintenance & Alts,5005,Blanket reactive Aug-Dec 2015.,18/12/2015,108356,472.85,Revenue,Stringfellow Bldg Cntrctrs Ltd,17893
Chorley Borough Council,http://statistics.data.gov.uk/id/local-authority/30UE,Unapportionable Central OHeads,1009,Governance,General Repairs - Reactive,20004,Repairs Maintenance & Alts,5005,Blanket reactive Aug-Dec 2015.,18/12/2015,108358,263.27,Revenue,Stringfellow Bldg Cntrctrs Ltd,17893
Chorley Borough Council,http://statistics.data.gov.uk/id/local-authority/30UE,Service Management & Support,1009,Streetscene & Leisure Contracts,External Contractor,40198,Miscellaneous Expenses,5034,Undertaking topographical survey at Westway Playing Fields in accordance with quotation 15J005.,02/12/2015,107679,"3,960.00",Revenue,Survey Operations Ltd,55910
Chorley Borough Council,http://statistics.data.gov.uk/id/local-authority/30UE,Unapportionable Central OHeads,1009,Governance,Cleaning Materials,40019,"Equipment, Furniture & Materia",5023,cleaning,18/12/2015,108024,323.87,Revenue,Swiftkleen Ltd,17933
Chorley Borough Council,http://statistics.data.gov.uk/id/local-authority/30UE,Economic Development,1096,Governance,Publicity - Advertising,40157,Miscellaneous Expenses,5034,Please supply x5000 Product: Polythene bag with patch handles Size: w390 x h460 x d80 mm Colour: White Thickness:,09/12/2015,108058,"1,215.50",Revenue,Templecoombe Ltd,48607
Chorley Borough Council,http://statistics.data.gov.uk/id/local-authority/30UE,Economic Development,1096,Governance,Publicity - Advertising,40157,Miscellaneous Expenses,5034,Print Detail: 2 sides 4 colour process Origination: 642,09/12/2015,108058,642.00,Revenue,Templecoombe Ltd,48607
Chorley Borough Council,http://statistics.data.gov.uk/id/local-authority/30UE,Community Development,1097,Policy & Performance,Core Funding Grants,40133,Grants and Subscriptions,5031,2nd payment 2015/16 for delivery of an arts and employment service,09/12/2015,108149,"5,000.00",Revenue,The Arts Partnership,18943
Chorley Borough Council,http://statistics.data.gov.uk/id/local-authority/30UE,Elections,1012,Governance,Training Course Fees,17010,Indirect Employee Expenses,5002,PCC Election Training - Preston 4 February 2015 ,16/12/2015,108331,366.00,Revenue,The Association Of Electoral Administrators,16344
Chorley Borough Council,http://statistics.data.gov.uk/id/local-authority/30UE,Elections,1012,Governance,Training Course Fees,17010,Indirect Employee Expenses,5002,PCC Election Training - Verification and Count - Preston 19 February 2015,16/12/2015,108336,366.00,Revenue,The Association Of Electoral Administrators,16344
Chorley Borough Council,http://statistics.data.gov.uk/id/local-authority/30UE,Corporate Management,1008,Policy & Performance,Exhibitions & Special Events,40158,Miscellaneous Expenses,5034,Providing arts and crafts activities every Saturday from 5 December until Saturday 19 December,18/12/2015,108265,720.00,Revenue,The Creation Station Chorley,72090
Chorley Borough Council,http://statistics.data.gov.uk/id/local-authority/30UE,Democratic Represent and  Mgnt,1007,Governance,Data Protection Registration,40173,Miscellaneous Expenses,5034,Renewals,09/12/2015,108085,630.00,Revenue,The Information Commissioner,16278
Chorley Borough Council,http://statistics.data.gov.uk/id/local-authority/30UE,Democratic Represent and  Mgnt,1007,Streetscene & Leisure Contracts,Exhibitions & Special Events,40158,Miscellaneous Expenses,5034,"Estimate reference is E#8378Astley Hall - The Art of Axel Scheffler Exhibition  2 x A1 posters printed to vinyl and mount",04/12/2015,106186,332.00,Revenue,The Print Quarter,17987
Chorley Borough Council,http://statistics.data.gov.uk/id/local-authority/30UE,Unapportionable Central OHeads,1009,Policy & Performance,Publicity - Advertising,40157,Miscellaneous Expenses,5034,45 x A2 Christmas events posters for bus shelters and 3 larger posters for the town centre,04/12/2015,107986,376.50,Revenue,The Print Quarter,17987
Chorley Borough Council,http://statistics.data.gov.uk/id/local-authority/30UE,Unapportionable Central OHeads,1009,Health Environment & Neighbourhoods,Exhibitions & Special Events,40158,Miscellaneous Expenses,5034,Jack and the Beanstalk performance on Sunday 29th November at Chorley Town Hall,02/12/2015,108003,750.00,Revenue,The Storytellers Theatre Company,19917
Chorley Borough Council,http://statistics.data.gov.uk/id/local-authority/30UE,Unapportionable Central OHeads,1009,"Customer, ICT & Transactional",Postages,40082,Communication and Computing,5028,Imail Eco Business mono Letters - Hybrid,09/12/2015,107984,439.26,Revenue,UKMAIL Ltd (Mail),57758
Chorley Borough Council,http://statistics.data.gov.uk/id/local-authority/30UE,Unapportionable Central OHeads,1009,"Customer, ICT & Transactional",Postages,40082,Communication and Computing,5028,Imail Eco Business mono Letters - Hybrid,09/12/2015,108004,448.79,Revenue,UKMAIL Ltd (Mail),57758
Chorley Borough Council,http://statistics.data.gov.uk/id/local-authority/30UE,Unapportionable Central OHeads,1009,"Customer, ICT & Transactional",Postages,40082,Communication and Computing,5028,Imail Eco Business mono Letters - Hybrid,18/12/2015,108401,"1,027.66",Revenue,UKMAIL Ltd (Mail),57758
Chorley Borough Council,http://statistics.data.gov.uk/id/local-authority/30UE,Unapportionable Central OHeads,1009,"Customer, ICT & Transactional",Postages,40082,Communication and Computing,5028,Imail Eco Business mono Letters - Hybrid,18/12/2015,108421,533.40,Revenue,UKMAIL Ltd (Mail),57758
Chorley Borough Council,http://statistics.data.gov.uk/id/local-authority/30UE,Control Accounts,Control,Shared Service Arrangement,General Balances,100,Balance Sheet,Balance,,18/12/2015,108557,"1,992.40",Revenue,Unify Credit Union Ltd,55509
Chorley Borough Council,http://statistics.data.gov.uk/id/local-authority/30UE,Service Management & Support,1009,Streetscene & Leisure Contracts,Water - Metered Supplies,20022,Water Services,5009,,04/12/2015,107889,375.03,Revenue,United Utilites (Standpipe Invoices Only),20701
Chorley Borough Council,http://statistics.data.gov.uk/id/local-authority/30UE,Corporate Management,1008,Governance,Water - Metered Supplies,20022,Water Services,5009,Toilets,09/12/2015,108100,"1,960.47",Revenue,United Utilities Water Plc,17926
Chorley Borough Council,http://statistics.data.gov.uk/id/local-authority/30UE,Democratic Represent and  Mgnt,1007,Governance,Water - Metered Supplies,20022,Water Services,5009,Eaves Green,18/12/2015,108388,294.12,Revenue,United Utilities Water Plc,17926
Chorley Borough Council,http://statistics.data.gov.uk/id/local-authority/30UE,Unapportionable Central OHeads,1009,Governance,Water - Metered Supplies,20022,Water Services,5009,Town hall,22/12/2015,108457,811.50,Revenue,United Utilities Water Plc,17926
Chorley Borough Council,http://statistics.data.gov.uk/id/local-authority/30UE,Development Control,1091,Planning,Professional Fees,40063,Services,5027,Planning Officer Support to be provided from 26 Jan  15 @ 125 per application returned any mileage costs,22/12/2015,108005,"2,000.00",Revenue,Urban Vision Partnership Ltd,21181
Chorley Borough Council,http://statistics.data.gov.uk/id/local-authority/30UE,Business Support,1095,Economic Development,Miscellaneous Expenses,40200,Miscellaneous Expenses,5034,BIG grant,04/12/2015,108042,"4,000.00",Revenue,Utilisoft,72794
Chorley Borough Council,http://statistics.data.gov.uk/id/local-authority/30UE,Corporate Management,1008,Streetscene & Leisure Contracts,Unitary Payment(S),50009,Private Contractors,5042,Provision of household waste and recycling collections and ancillary services for 2015/16,16/12/2015,107662,"275,439.19",Revenue,Veolia ES (UK) Ltd,20748
Chorley Borough Council,http://statistics.data.gov.uk/id/local-authority/30UE,Corporate Management,1008,Streetscene & Leisure Contracts,Unitary Payment(S),50009,Private Contractors,5042,Provision of household waste and recycling collections and ancillary services for 2015/16,22/12/2015,108596,"275,439.19",Revenue,Veolia ES (UK) Ltd,20748
Chorley Borough Council,http://statistics.data.gov.uk/id/local-authority/30UE,Central Support Services,1009,"Customer, ICT & Transactional",Telephones - Rentals,40083,Communication and Computing,5028,cctv,09/12/2015,107816,"2,145.00",Revenue,Virgin Media Payments Ltd,17632
Chorley Borough Council,http://statistics.data.gov.uk/id/local-authority/30UE,Central Support Services,1009,"Customer, ICT & Transactional",Internet Charges,40104,Communication and Computing,5028,charges,16/12/2015,108379,"1,119.11",Revenue,Virgin Media Payments Ltd,17632
Chorley Borough Council,http://statistics.data.gov.uk/id/local-authority/30UE,Unapportionable Central OHeads,1009,Shared Service Arrangement,Car Leasing Payment,14100,Direct Employee Expenses,5001,Car Leasing,04/12/2015,107188,"3,265.84",Revenue,VWFS UK Ltd T/A Volkswagen Group Leasing,56010
Chorley Borough Council,http://statistics.data.gov.uk/id/local-authority/30UE,Unapportionable Central OHeads,1009,Shared Service Arrangement,Car Leasing Payment,14100,Direct Employee Expenses,5001,VAT,04/12/2015,107188,292.89,Revenue,VWFS UK Ltd T/A Volkswagen Group Leasing,56010
Chorley Borough Council,http://statistics.data.gov.uk/id/local-authority/30UE,Unapportionable Central OHeads,1009,Shared Service Arrangement,Car Leasing Payment,14100,Direct Employee Expenses,5001,Car Leasing,04/12/2015,107189,"3,699.16",Revenue,VWFS UK Ltd T/A Volkswagen Group Leasing,56010
Chorley Borough Council,http://statistics.data.gov.uk/id/local-authority/30UE,Unapportionable Central OHeads,1009,Shared Service Arrangement,Car Leasing Payment,14100,Direct Employee Expenses,5001,VAT,04/12/2015,107189,322.42,Revenue,VWFS UK Ltd T/A Volkswagen Group Leasing,56010
Chorley Borough Council,http://statistics.data.gov.uk/id/local-authority/30UE,Business Support,1095,Economic Development,Miscellaneous Expenses,40200,Miscellaneous Expenses,5034,GRANT,22/12/2015,108490,250.00,Revenue,NAME REDACTED,73197
Chorley Borough Council,http://statistics.data.gov.uk/id/local-authority/30UE,Unapportionable Central OHeads,1009,Chief Executives Office,Postages,40082,Communication and Computing,5028,Weekly mail collection Week 13 - Week 26,09/12/2015,107731,605.77,Revenue,Whistl North Limited,67256
Chorley Borough Council,http://statistics.data.gov.uk/id/local-authority/30UE,Unapportionable Central OHeads,1009,Chief Executives Office,Postages,40082,Communication and Computing,5028,Weekly mail collection Week 13 - Week 26,09/12/2015,107762,431.05,Revenue,Whistl North Limited,67256
Chorley Borough Council,http://statistics.data.gov.uk/id/local-authority/30UE,Unapportionable Central OHeads,1009,Chief Executives Office,Postages,40082,Communication and Computing,5028,Weekly mail collection Week 13 - Week 26,09/12/2015,108229,462.80,Revenue,Whistl North Limited,67256
Chorley Borough Council,http://statistics.data.gov.uk/id/local-authority/30UE,Unapportionable Central OHeads,1009,Chief Executives Office,Postages,40082,Communication and Computing,5028,Weekly mail collection Week 13 - Week 26,09/12/2015,108239,362.41,Revenue,Whistl North Limited,67256
Chorley Borough Council,http://statistics.data.gov.uk/id/local-authority/30UE,Unapportionable Central OHeads,1009,Chief Executives Office,Postages,40082,Communication and Computing,5028,Weekly mail collection Week 13 - Week 26,09/12/2015,108240,367.41,Revenue,Whistl North Limited,67256
Chorley Borough Council,http://statistics.data.gov.uk/id/local-authority/30UE,Democratic Represent and  Mgnt,1007,Streetscene & Leisure Contracts,Consultants` Fees,40077,Services,5027,curatorial consultancy services at Astley Hall in September 2015: J4362 days  on site at Astley Hall @ 116.66 per day,04/12/2015,108023,279.92,Revenue,Whittle and Draper Fine Art,52271
Chorley Borough Council,http://statistics.data.gov.uk/id/local-authority/30UE,Capital,Capital,Streetscene & Leisure Contracts,Main Contractor,3007,Capital Expenditure,Capital,Design and build play area at Eaves Green Community Centre under JCT Design and Build Contract 2011,16/12/2015,107295,"33,523.20",Capital,Wicksteed Leisure Ltd,18007
Chorley Borough Council,http://statistics.data.gov.uk/id/local-authority/30UE,Community Development,1097,Policy & Performance,Core Funding Grants,40133,Grants and Subscriptions,5031,small comm funding,16/12/2015,108272,500.00,Revenue,Wymott Art Group and Crafts,68210
Chorley Borough Council,http://statistics.data.gov.uk/id/local-authority/30UE,Democratic Represent and  Mgnt,1007,Streetscene & Leisure Contracts,Miscellaneous Expenses,40200,Miscellaneous Expenses,5034,"Arts Council England Funding for the film Director (days) 554.00Camera Operator (days) 600.00Camera Assistant (days)",04/12/2015,107900,"2,919.00",Revenue,Zemap Video Production,72379
